Cogmind - Beta 16 @@@ ROGUE MODE // 2025.12.20 @ 23:02:24 Player: Cracklepappy Result: Escaped! Performance ------------- Evolutions (9) 4500 Regions Visited (31) 6200 Robots Destroyed (512) 2560 Value Destroyed (21592) 21592 Prototype IDs (173) 3460 Alien Tech Used (4) 800 Bonus (33875) 33875 TOTAL SCORE: 72987 Bonus ------- High Alert Combat Kills 3236 Follower Combat Kills 1767 Network Hubs Disabled 800 Registered with UFD 300 Met Optimus in HQ 500 Met Zhirov 300 Met Warlord at Base 500 MAIN.C Attacked Warlord 500 Warlord Defense Kills 5958 Met R17 at Cetus 500 Met R17 at Research 2000 Destroyed Superfortress 15000 Met Optimus at Protoforge 1000 Win 3000 Friendly Fire -1486 Cogmind --------- Core Integrity 356/1600 Matter 233/300 Energy 218/220 System Corruption 6% Temperature Cool (0) Movement Flying (32) Location To Epsilon Eridani Parts ------- > --- POWER (2) -------- Concept Zero-point Core > --- PROPULSION (8) --- Experimental Biomechanical Wings Experimental Biomechanical Wings > --- UTILITY (7) ------ Concept Thermoelectric Network > --- WEAPON (8) ------- (None) > --- INVENTORY (5) ---- Concept NT7 Matterbank (300) Concept Matter Streamer High-powered Transdimensional Reconstructor Peak State ------------ > --- POWER ------------ Concept Zero-point Core Concept Zero-point Core > --- PROPULSION ------- Improved Diametric Drive Improved Diametric Drive Impulse Thruster Array Impulse Thruster Array Experimental Biomechanical Wings Experimental Biomechanical Wings > --- UTILITY ---------- 0bPrime Scrap Suit Concept Phasing Heat Sink Concept Thermoelectric Network Concept Antigrav Storage Unit Concept Dimensional Manipulator Graphene Brace > --- WEAPON ----------- Overtuned Coil Gun Overtuned Coil Gun Overtuned Coil Gun Overtuned Coil Gun Overtuned Coil Gun Overtuned Coil Gun Overtuned Railgun Concept Blasthammer > --- INVENTORY -------- Concept Zero-point Core Concept Zero-point Core Impulse Thruster Array Impulse Thruster Array Experimental Biomechanical Wings Concept Fieldthrust Drive 0bPrime Scrap Suit 0bPrime Scrap Suit Experimental Coolant Injector Concept Thermoelectric Network Concept NT7 Matterbank Concept Antimissile System Concept Matter Streamer High-powered Transdimensional Reconstructor Concept Plasma Driver Overtuned Coil Gun Overtuned Coil Gun Overtuned Coil Gun Concept Miniperforator [Rating: 246] Favorites ----------- Power Light Nuclear Core Engine Light Ion Engine Power Core Light Nuclear Core Reactor Compact Particle Reactor Propulsion Cooled Nuclear Pulse Thruster Treads Light Treads Flight Unit Cooled Nuclear Pulse Thruster Utility Advanced Weight Redist. System Device Advanced Weight Redist. System Storage Medium Storage Unit Processor Spectral Analyzer Hackware Advanced Hacking Suite Protection Medium Regenerative Plating Weapon Autogun Energy Gun EM Pulse Gun Energy Cannon Beam Cannon Ballistic Gun Autogun Ballistic Cannon Improved Light Cannon Launcher Smartbomb Launcher Special Weapon Plasma Cutter Impact Weapon Concept Blasthammer Slashing Weapon Phasing Sabre Piercing Weapon Experimental Jetlance Special Melee Weapon Datajack Build | -11 -10 -10 -9 -9 -8 -8 -8 -8 -6 -6 -6 -6 -6 -5 -5 -5 -5 -5 -4 -4 -4 -4 -4 -3 -3 -3 -2 -2 -2 -1 -1 ------- Run | Yrd Mat Min Mat Min Mat Sto Rec Scr Fac Ext Cet Arc Hub Fac Was Fac Upp War Pro Fac Upp Upp Zhi Pro Res Tes Res Qua Frg Acc Com Slots Evolved 18 | . . . 2 . 2 . . . 4 . . . . 2 . . . . . 2 . . . . 2 . 2 . . 2 . Power 1 | . . . . . . . . . . . . . . . . . . . . 1 . . . . . . . . . . . Propulsion 6 | . . . . . 1 . . . 2 . . . . 2 . . . . . . . . . . 1 . . . . . . Utility 5 | . . . . . 1 . . . 2 . . . . . . . . . . 1 . . . . 1 . . . . . . Weapon 6 | . . . 2 . . . . . . . . . . . . . . . . . . . . . . . 2 . . 2 . Parts Attached 343 | 8 20 10 29 3 24 16 2 7 10 16 1 11 19 7 . 12 . 12 1 6 . . 2 1 14 11 5 2 85 5 4 Power 40 | 1 3 1 4 1 2 4 . . 3 2 . . 4 . . . . . . 3 . . . . . 2 1 1 8 . . Engine 10 | 1 3 . 3 . . . . . . . . . 1 . . . . . . 2 . . . . . . . . . . . Core 18 | . . 1 1 1 2 4 . . 2 . . . 3 . . . . . . . . . . . . . . 1 3 . . Reactor 12 | . . . . . . . . . 1 2 . . . . . . . . . 1 . . . . . 2 1 . 5 . . Propulsion 65 | 2 4 2 6 1 4 1 . 3 1 1 . . 4 4 . 5 . 1 . . . . . . 4 3 1 1 15 1 1 Treads 18 | 2 4 2 6 1 . . . 3 . . . . . . . . . . . . . . . . . . . . . . . Leg . | . . . . . . . . . . . . . . . . . . . . . . . . . . . . . . . . Wheel . | . . . . . . . . . . . . . . . . . . . . . . . . . . . . . . . . Hover . | . . . . . . . . . . . . . . . . . . . . . . . . . . . . . . . . Flight 47 | . . . . . 4 1 . . 1 1 . . 4 4 . 5 . 1 . . . . . . 4 3 1 1 15 1 1 Utility 99 | 4 7 3 2 1 8 3 1 1 3 6 . 5 3 1 . 3 . 4 1 1 . . 2 1 5 2 3 . 27 1 1 Device 60 | 4 3 2 2 1 4 . 1 . 1 2 . 3 1 1 . 1 . 3 1 . . . 1 . 3 1 1 . 22 1 1 Storage 15 | . 3 . . . 1 2 . 1 . 1 . . 1 . . . . . . . . . 1 1 1 . . . 3 . . Processor 11 | . . . . . 2 1 . . 2 1 . . . . . 1 . 1 . 1 . . . . . . 1 . 1 . . Hackware 8 | . . . . . 1 . . . . 1 . 2 . . . 1 . . . . . . . . 1 1 1 . . . . Protection 5 | . 1 1 . . . . . . . 1 . . 1 . . . . . . . . . . . . . . . 1 . . Artifact . | . . . . . . . . . . . . . . . . . . . . . . . . . . . . . . . . Weapon 139 | 1 6 4 17 . 10 8 1 3 3 7 1 6 8 2 . 4 . 7 . 2 . . . . 5 4 . . 35 3 2 Energy Gun 11 | 1 2 . . . . . . . . 1 . 1 . . . . . 2 . . . . . . . 1 . . 3 . . Energy Cannon 10 | . 3 . . . . . . . . . 1 . . . . 1 . . . . . . . . 1 1 . . 2 . 1 Ballistic Gun 77 | . 1 . 12 . 8 8 1 . . 4 . 3 8 1 . 2 . 1 . 1 . . . . 3 2 . . 19 3 . Ballistic Cannon 12 | . . 2 4 . . . . . 1 . . . . . . . . . . 1 . . . . . . . . 4 . . Launcher 5 | . . 1 . . . . . . . . . . . . . 1 . 1 . . . . . . . . . . 1 . 1 Special Weapon 8 | . . 1 . . . . . 2 1 1 . . . . . . . 3 . . . . . . . . . . . . . Impact Weapon 2 | . . . 1 . . . . . . . . . . . . . . . . . . . . . . . . . 1 . . Slashing Weapon 3 | . . . . . 1 . . . . 1 . . . . . . . . . . . . . . . . . . 1 . . Piercing Weapon 5 | . . . . . . . . . 1 . . . . . . . . . . . . . . . . . . . 4 . . Special Melee Weapon 6 | . . . . . 1 . . 1 . . . 2 . 1 . . . . . . . . . . 1 . . . . . . Unidentified Prototypes 46 | . . . 1 . . 2 . . . 3 . . . . . 1 . 5 . 1 . . 2 . . 5 . . 26 . . Corrupted Parts 1 | . . . . . . . . . . . . 1 . . . . . . . . . . . . . . . . . . . System Corruption 10 | . . . . . . . . . . . . 10 . . . . . . . . . . . . . . . . . . . Parts Lost 56 | . . 1 . . 1 1 . . . 1 2 1 8 4 . 2 . . . . . . . 1 . 2 1 . 9 2 20 Power 8 | . . . . . . 1 . . . . . . 3 . . . . . . . . . . . . 1 . . 2 . 1 Propulsion 12 | . . . . . . . . . . . 1 . 1 2 . 1 . . . . . . . . . . . . 3 . 4 Utility 14 | . . . . . 1 . . . . 1 . . 2 1 . 1 . . . . . . . . . 1 1 . . . 6 Weapon 22 | . . 1 . . . . . . . . 1 1 2 1 . . . . . . . . . 1 . . . . 4 2 9 Highest Loss Streak 16 | . . 1 . . 1 1 . . . 1 2 1 6 4 . 1 . . . . . . . 1 . 1 1 . 7 2 16 To Critical Strikes 1 | . . . . . . . . . . . 1 . . . . . . . . . . . . . . . . . . . . Average Backups 13 | 2 17 19 19 20 5 7 10 16 8 7 7 9 9 9 9 8 9 9 9 10 10 10 9 9 14 14 13 14 15 20 16 Power . | . 1 1 1 1 . . . . . . 1 1 1 . . . 1 1 1 . . . . 1 1 1 1 1 1 2 1 Propulsion 2 | . 3 4 6 5 . 2 3 4 1 . . . 1 . 1 1 2 . . . . . . . 1 1 . 1 1 5 4 Utility 4 | . 4 5 5 6 1 1 2 5 2 1 3 3 2 4 5 3 3 3 3 3 3 3 3 4 6 5 6 5 6 6 6 Weapon 4 | 1 7 7 6 6 3 3 4 4 3 2 2 3 3 2 2 2 2 4 4 5 6 6 4 3 3 4 4 3 3 5 2 Tool/Special . | . . . . . . . . . . . . . . . . . . . . . . . . . . . . . . . . Unused Backups 93 | . 13 1 13 . 6 2 . . 6 1 6 1 2 3 . 4 . 2 . 1 . . 1 . 9 . 1 3 9 2 7 Power 6 | . 1 . . . 1 . . . . . . . . . . 1 . . . 1 . . . . . . . . . . 2 Propulsion 14 | . 1 . 3 . 2 2 . . . . 1 . . . . 1 . 1 . . . . . . 1 . . . . . 2 Utility 39 | . 3 1 8 . 1 . . . 4 . 3 1 1 1 . 1 . 1 . . . . . . 5 . . 1 6 . 2 Weapon 27 | . 8 . 2 . 1 . . . 2 1 2 . 1 1 . 1 . . . . . . 1 . 3 . 1 . 1 2 . Tool/Special 7 | . . . . . 1 . . . . . . . . 1 . . . . . . . . . . . . . 2 2 . 1 Average Slot Usage (%) 95 | . 97 99 99 100 99 99 100 100 98 99 96 85 96 96 88 95 100 95 94 90 94 92 93 91 89 90 85 86 82 83 76 Engine 2 | . 12 4 9 5 . . . . . . . . . 2 . . . . . 2 5 5 5 5 4 . . . . . . Core 4 | . . 9 1 5 9 8 9 9 4 . . . 3 . . . . . . . . . . . . . . 1 4 8 7 Reactor 1 | . . . . . . . . . 1 6 6 6 2 2 5 5 5 5 5 5 5 5 5 5 4 8 8 6 2 . . Treads 9 | . 28 28 21 22 . . . 17 . . . . . . . . . . . . . . . . . . . . . . . Flight 19 | . . . . . 26 27 27 9 31 33 31 26 31 39 41 40 41 41 41 36 36 36 36 36 28 28 30 30 28 20 19 Device 10 | . 11 6 9 11 12 9 9 9 6 6 6 8 7 9 11 7 5 10 5 5 5 5 11 15 14 14 14 17 18 20 19 Storage 7 | . 12 14 11 11 1 6 9 9 6 6 6 6 6 5 5 5 5 5 5 5 5 5 5 5 4 4 4 4 4 4 3 Processor 5 | . . . . . 3 9 9 9 19 17 13 13 13 10 5 6 5 5 5 9 10 10 7 5 4 4 4 4 3 . . Hackware 1 | . . . . . 8 1 . . . 1 . 2 1 . . 4 5 5 5 5 5 5 1 . 4 3 2 3 . . . Protection 1 | . 3 7 1 . . . . . . . 5 1 2 . . 1 5 . 4 5 5 5 5 5 4 4 2 . . . . Energy Cannon 2 | . 16 10 . . . . . . . . 4 . . . . 1 5 . . . . . . . 2 . . . . . . Ballistic Gun 19 | . 4 . 35 43 32 29 36 29 23 22 12 8 18 9 11 12 11 4 5 5 5 5 1 . 2 14 6 8 15 29 20 Ballistic Cannon 2 | . . 16 8 . . . . . . . 5 1 . 4 . . . . . . . 1 . 3 3 . . . . . 1 Slashing Weapon 1 | . . . . . 3 6 . . . 1 . 4 3 5 5 5 5 5 5 5 5 3 5 5 4 1 4 4 . . . Peak Build Rating 246 | 7 12 16 24 24 31 35 35 42 65 78 79 84 88 92 73 100 100 115 115 125 116 116 119 123 151 171 167 172 237 246 243 Average Rating 71 | 4 9 13 21 22 28 32 34 38 61 68 74 74 79 87 73 86 100 109 111 116 116 111 116 113 144 155 157 167 195 239 226 On Entrance 88 | . 7 12 14 21 24 29 34 35 42 65 77 66 73 62 73 73 100 100 111 112 116 116 116 119 114 151 159 167 172 235 242 Avg Prop Armor Cover (%) 12 | 33 30 . . . . . . 1 . . . . . . . . . 1 6 . . . . . . . . . 1 . . Naked Turns . | . . . . . . . . . . . . . . . . . . . . . . . . . . . . . . . . Heaviest Build 98 | 3 96 58 66 64 64 27 27 95 32 40 51 45 37 47 34 50 50 52 48 51 51 51 51 52 67 70 67 66 90 98 98 Greatest Support 100 | 3 46 46 43 43 43 21 24 93 34 34 29 29 37 50 46 50 50 53 51 51 51 51 51 51 71 70 67 67 96 100 100 Greatest Overweight (x) 3 | . 2 1 2 1 2 1 1 1 1 2 3 1 . 1 . . . 1 3 . . . . 1 . 1 . . 1 . 1 Average Overweight (x) . | . . 1 1 1 . . 1 . . . 1 . . . . . . . . . . . . . . . . . . . . Largest Inventory Capacity 25 | 5 25 20 20 20 20 10 10 25 25 10 10 10 10 10 10 10 10 10 10 10 10 10 10 10 15 15 15 15 25 25 25 Average Capacity 14 | 5 17 20 20 20 5 7 10 19 10 10 10 10 10 10 10 10 10 10 10 10 10 10 10 10 14 15 15 15 17 25 23 Most Carried 25 | 5 25 20 20 20 20 10 10 25 25 10 10 10 10 10 10 10 10 10 10 10 10 10 10 10 15 15 15 15 25 25 23 Average Carried 14 | 2 17 19 19 19 5 7 9 17 10 9 8 9 9 9 10 9 9 9 9 10 10 9 9 9 14 14 14 14 17 24 20 Final Capacity 25 | 5 20 20 20 20 5 10 10 25 10 10 10 10 10 10 10 10 10 10 10 10 10 10 10 10 15 15 15 15 25 25 5 Final Carried 25 | 5 20 20 20 20 5 10 10 25 10 10 10 10 10 10 10 10 10 10 10 10 10 10 10 10 15 15 15 15 25 23 3 Scrap Suit Usage (%) 3 | . . . . . . . . . . . . . . . . . . . . . . . . . . . . . 21 100 89 Parts Cannibalized 28 | . . . . . . . . . . . . . . . . . . . . . . . . . . . . . 20 3 5 Class Distribution -------------------- 29% | Gunner 16% | Sprinter 15% | Scavenger-Sprinter 14% | Mutant 5% | Commander-Sprinter 5% | Tank 5% | Scavenger-Scrapper Dominant Class ---------------- Mutant | -10/Materials Mutant | -10/Mines Gunner | -9/Materials Gunner | -9/Mines Tank | -8/Materials Sprinter | -8/Storage Gunner | -8/Recycling Gunner | -8/Scraptown Sprinter | -6/Factory Commander-Sprinter | -6/Extension Commander-Skirmisher | -6/Cetus Scavenger-Mutant | -6/Archives Scavenger-Sprinter | -6/Hub_04(d) Scavenger-Sprinter | -5/Factory Scavenger-Sprinter | -5/Waste Scavenger-Sprinter | -5/Factory Sprinter | -5/Upper Caves Commander-Sprinter | -5/Warlord Sprinter | -4/Proximity Caves Sprinter | -4/Factory Scavenger-Sprinter | -4/Upper Caves Scavenger-Sprinter | -4/Upper Caves Sprinter | -4/Zhirov Scavenger-Sprinter | -3/Proximity Caves Sprinter | -3/Research Sprinter | -3/Testing Sprinter | -2/Research Sprinter | -2/Quarantine Scavenger-Sprinter | -2/Protoforge Scavenger-Scrapper | -1/Access Scavenger-Sprinter | -1/Command Resources | -11 -10 -10 -9 -9 -8 -8 -8 -8 -6 -6 -6 -6 -6 -5 -5 -5 -5 -5 -4 -4 -4 -4 -4 -3 -3 -3 -2 -2 -2 -1 -1 ----------- Run | Yrd Mat Min Mat Min Mat Sto Rec Scr Fac Ext Cet Arc Hub Fac Was Fac Upp War Pro Fac Upp Upp Zhi Pro Res Tes Res Qua Frg Acc Com Matter Collected 25816 | 270 434 316 2698 580 1436 1125 282 130 160 1399 150 368 1072 142 . 504 14 1272 498 160 4 156 287 947 208 1307 458 195 6625 1564 1055 Remotely 1274 | . . . . . . . . . . . . . . . . . . 1102 52 . . . . . . . . . 120 . . Salvage Created 24011 | 167 1356 566 3185 548 1059 1559 453 . 155 1391 156 378 1544 122 . 589 150 1475 513 464 87 252 287 453 468 1068 87 31 3181 1080 1187 Parts 1000 | 14 72 30 149 9 45 85 14 . 8 47 5 22 73 11 . 31 1 64 15 17 4 5 4 6 17 60 2 2 126 43 19 Haulers Intercepted 29 | . 2 . 6 . 6 6 . . . . . . 3 . . 1 . . . 2 . . . . 2 . . . . 1 . Recyclers Shooed 24 | 1 6 . 7 . . 2 2 . . 4 . . . . . 1 . . . . . . . . 1 . . . . . . Parts Field Recycled . | . . . . . . . . . . . . . . . . . . . . . . . . . . . . . . . . Retrieved Matter . | . . . . . . . . . . . . . . . . . . . . . . . . . . . . . . . . Parts Self-Destructed 32 | . . . . . . . . . . . . . . . . . . . 20 . 1 6 2 3 . . . . . . . Prevented 1 | . . . . . . . . . . . . . . . . . 1 . . . . . . . . . . . . . . Parts Restored 7 | . . . . . . . . . . . . . . . . . . . . . . . . . . . . . 7 . . Faulty 7 | . . . . . . . . . . . . . . . . . . . . . . . . . . . . . 7 . . Kills | -11 -10 -10 -9 -9 -8 -8 -8 -8 -6 -6 -6 -6 -6 -5 -5 -5 -5 -5 -4 -4 -4 -4 -4 -3 -3 -3 -2 -2 -2 -1 -1 ------- Run | Yrd Mat Min Mat Min Mat Sto Rec Scr Fac Ext Cet Arc Hub Fac Was Fac Upp War Pro Fac Upp Upp Zhi Pro Res Tes Res Qua Frg Acc Com Combat Hostiles Destroyed 383 | . 25 15 50 17 5 19 2 . 2 19 2 2 24 3 . 9 1 65 16 4 . 1 . 15 1 14 1 . 48 13 10 Melee 7 | . . . . . . . . . . . . . . . . 1 . . . . . . . . . 1 . . 4 1 . Guns 200 | . 16 . 35 17 5 19 2 . 1 19 . . 24 3 . . . . 1 . . . . . . 13 1 . 33 9 2 Cannons 54 | . 9 10 15 . . . . . 1 . . 2 . . . 1 . . . . . 1 . 4 . . . . 7 3 1 AOE 108 | . . 3 . . . . . . . . . . . . . 6 . 65 15 4 . . . 11 . . . . 4 . . Classes Destroyed 30 | 2 5 2 5 . . . . . 1 . . . 3 . . . 1 3 2 . . . . . . . . . 6 . . Worker 22 | . 2 . 3 . 2 3 . . 1 1 . . 1 1 . 1 . . . 1 . . . . 1 1 . . . . 4 Builder 8 | . . . 2 . . . . . . . . . 1 . . 2 . . . . . . . . 1 1 . . . 1 . Tunneler 7 | 4 . 1 . . 1 . . . . 1 . . . . . . . . . . . . . . . . . . . . . Hauler 29 | . 2 . 6 . 6 6 . . . . . . 3 . . 1 . . . 2 . . . . 2 . . . . 1 . Recycler 41 | 1 3 1 10 4 4 2 4 . . 3 . . 1 . . 2 . . . 1 . . . . 1 . . . . 2 2 Minesweeper 1 | . . . . . . . . . . . . . . . . . . . 1 . . . . . . . . . . . . Mechanic 4 | . . . 2 . . . . . . . . . . . . . . 1 . . . . . 1 . . . . . . . Operator 10 | . . . 1 . 1 . . . . . . 7 . 1 . . . . . . . . . . . . . . . . . Drone 8 | . . . . . . . . . . . . . . . . . . . . . . . . . . . . . 8 . . Watcher 15 | . 3 . 4 . . 2 . . . . . . 1 . . . . . . . . . . . . 2 . 1 1 1 . Swarmer 53 | . 6 3 3 3 . . . . . 2 . . 6 3 . 4 . 7 5 . . . . 1 . . . . 2 8 . Cutter 2 | . . . . . . . . . . . . . 2 . . . . . . . . . . . . . . . . . . Saboteur 14 | . . . . . . . . . . . . . . . . . . 13 . . . . . . . . . . 1 . . Grunt 145 | . 19 9 33 . 2 10 . . . 9 . . 7 . . 5 . 29 6 3 . . . 8 . 4 . . 1 . . Brawler 14 | . . . 2 . . 1 . . . . . . . . . . . 4 2 1 . . . 2 . . . . 2 . . Duelist 14 | . . . 2 . . 1 . . . 1 . . 1 . . . . 3 1 . . . . 1 . 1 . . 3 . . Protector 4 | . . . . . . . . . . . . . . . . . . 3 . . . . . . . . . . 1 . . Researcher 2 | . . . . . . . . . . . . . . . . . . . . . . . . . . . . . 2 . . Sentry 55 | . . 2 10 . 2 7 2 . 2 7 . 2 4 . . . 1 . 1 . . . . 1 1 . 1 . 10 1 1 Specialist 3 | . . . . . . . . . . . . . . . . . . 3 . . . . . . . . . . . . . Hunter 9 | . . . . . . . . . . . . . 2 . . . . 1 . . . . . . . . . . 2 . 4 Programmer 16 | . . . . . . . . . . . . . 2 . . . . 2 . . . 1 . 2 . 8 . . . . 1 Behemoth 1 | . . . . . . . . . . . . . . . . . . . 1 . . . . . . . . . . . . Cetus Guard 2 | . . . . . . . . . . . 2 . . . . . . . . . . . . . . . . . . . . Hotshot 5 | . . . . . . . . . . . . . . . . . . . . . . . . . . . . . 5 . . Decapitator 6 | . . . . . . . . . . . . . . . . . . . . . . . . . . . . . 6 . . Immortal 1 | . . . . . . . . . . . . . . . . . . . . . . . . . . . . . 1 . . Combat Programmer 3 | . . . . . . . . . . . . . . . . . . . . . . . . . . 1 . . . . 2 Striker 5 | . . . . . . . . . . . . . . . . . . . . . . . . . . . . . 2 2 1 Executioner 5 | . . . . . . . . . . . . . . . . . . . . . . . . . . . . . 2 2 1 Alpha 7 1 | . . . . . . . . . . . . . . . . . . . . . . . . . . . . . 1 . . Scrapoid 5 | . . . . . . . . . . . . . . . . . . . . . . . . . . . . . 5 . . Botcube 1 | . . . . . . . . . 1 . . . . . . . . . . . . . . . . . . . . . . Packrat 2 | . . . . . . . . . . . . . . . . . . . . . . 1 . 1 . . . . . . . Samaritan 4 | . . . . . . . . . . . . . . . . . 1 . 1 . 2 . . . . . . . . . . Assembled 15 | . . 1 . 14 . . . . . . . . . . . . . . . . . . . . . . . . . . . Savage 1 | . . . . . . . . . . . . . . . . . . . . . . 1 . . . . . . . . . Best Kill Streak 28 | 5 5 3 10 4 4 4 2 . 2 4 1 6 10 3 . 5 1 28 5 6 . 1 . 10 2 5 1 1 10 12 4 Combat Bots Only 27 | . 5 3 6 4 1 3 1 . 2 4 1 1 9 3 . 4 1 27 5 4 . 1 . 9 1 4 1 . 10 7 3 Max Kills in Single Turn 5 | 1 2 2 2 2 1 1 1 . 1 2 1 1 2 1 . 5 1 3 2 2 1 1 . 3 1 2 1 1 2 2 1 Gunslinging 1 | . 1 . 1 1 . . . . . 1 . . 1 . . . . . . . . . . . . . . . 1 . . Exploded 4 | . . 2 . . . . . . . . . . . . . 4 . 3 2 2 . . . 3 . . . . 2 . . Melee 1 | . . . . . . . . . . . . . . . . 1 . . . . . . . . . 1 . . 1 1 . Uniques/NPCs Destroyed 2 | . . . . . 1 . . . . 1 . . . . . . . . . . . . . . . . . . . . . 7R-MNS (-8/Materials) A7 (-6/Extension) Combat | -11 -10 -10 -9 -9 -8 -8 -8 -8 -6 -6 -6 -6 -6 -5 -5 -5 -5 -5 -4 -4 -4 -4 -4 -3 -3 -3 -2 -2 -2 -1 -1 -------- Run | Yrd Mat Min Mat Min Mat Sto Rec Scr Fac Ext Cet Arc Hub Fac Was Fac Upp War Pro Fac Upp Upp Zhi Pro Res Tes Res Qua Frg Acc Com Hostile Shots Fired 1564 | . 80 74 147 35 27 28 8 . 13 111 27 3 194 26 . 36 3 7 7 4 . 16 . 12 32 78 10 10 274 45 257 Missed 604 | . 18 20 43 11 9 6 1 . 10 55 11 3 73 7 . 17 1 4 4 3 . 8 . 6 22 32 7 6 113 18 96 Intercepted 4 | . . . . . . . . . . . . . . . . . . . . . . . . . . . . . . . 4 Hits 960 | . 62 54 104 24 18 22 7 . 3 56 16 . 121 19 . 19 2 3 3 1 . 8 . 6 10 46 3 4 161 27 161 Melee 26 | . . 3 2 3 . 1 . . . . . . 4 . . . . . . . . . . . . . . . 13 . . Projectile 934 | . 62 51 102 21 18 21 7 . 3 56 16 . 117 19 . 19 2 3 3 1 . 8 . 6 10 46 3 4 148 27 161 AOE 9 | . . . . . . . . . . . . . 1 . . 4 . . . . . . . . . . . . 1 . 3 Critical Strikes 53 | . . 2 2 1 1 3 . . . . 3 . 3 . . . . . . . . 2 . 1 . 5 1 2 15 1 11 Actively Blocked 34 | . . . . . . . . . . . . . 1 . . . . . . . . . . . . 5 . 2 15 1 10 Part Disruptions 1 | . . . . . . . . . . . . . . . . . . . . . . . . . . . . . 1 . . Damage Taken 19602 | . 642 757 1276 419 356 359 101 . 36 571 485 47 1993 660 . 345 53 97 50 16 . 104 . 150 181 1250 77 91 4759 732 3995 Core 2977 | . 142 78 175 . 47 79 12 . . 115 69 . 285 149 . 36 . 25 . . . . . . 56 104 . . 361 20 1224 Absorbed by Shields 459 | . . . . . . . . . . 67 . . . . . . . . 10 . . . . . . . . . 163 . 219 Redirected to Shielding 104 | . . . . . . . . . . . . . 104 . . . . . . . . . . . . . . . . . . Ignored by Resistances 107 | . . . . . . . . . . . . . 22 . . . . . . . . . . . . . . . 85 . . Regen/Repaired (Parts) 1369 | . . . 143 . . 107 . . . 10 24 43 . 108 . 29 73 43 45 . . . 45 . 106 302 41 . 170 30 50 Core Remaining (%) 64 | 100 . 12 . 56 . . . 74 . . . . 44 . . . . . 79 . . . . 100 . 87 . . 68 . 22 Volleys Fired 1327 | 16 107 70 143 32 72 70 12 . 7 63 19 19 52 4 . 29 16 67 31 6 . 13 . 41 10 53 17 4 269 54 31 Largest 8 | 1 2 2 4 4 4 4 4 . 4 4 1 4 4 2 . 3 1 1 1 1 . 1 . 1 1 4 1 1 6 8 8 Hottest 264 | 40 120 120 112 92 92 96 96 . 96 106 69 196 113 51 . 81 81 46 81 46 . 51 . 51 94 120 80 80 208 264 264 Shots Fired 3677 | 16 187 124 564 127 269 255 48 . 16 233 19 37 188 8 . 40 16 67 32 6 . 13 . 41 10 197 17 4 636 383 124 Gun 3041 | 16 123 . 435 127 269 255 48 . 12 232 . 18 188 8 . 16 . . 5 1 . 2 . . . 193 17 4 591 376 105 Cannon 481 | . 64 109 129 . . . . . 3 . 18 19 . . . 15 16 . 1 . . 11 . 21 10 4 . . 37 7 17 Launcher 139 | . . 2 . . . . . . . . . . . . . 9 . 67 26 5 . . . 20 . . . . 8 . 2 Special 16 | . . 13 . . . . . . 1 1 1 . . . . . . . . . . . . . . . . . . . . Kinetic 3173 | . 58 36 564 127 269 255 48 . 15 232 . 34 188 8 . 16 . . 5 1 . 13 . 21 1 193 1 . 594 383 111 Thermal 228 | 16 66 86 . . . . . . . . . 3 . . . . . . . . . . . . . . 16 4 26 . 11 Explosive 139 | . . 2 . . . . . . . . . . . . . 9 . 67 26 5 . . . 20 . . . . 8 . 2 Electromagnetic 126 | . 63 . . . . . . . . . 18 . . . . 15 16 . 1 . . . . . 9 4 . . . . . Entropic 8 | . . . . . . . . . . . . . . . . . . . . . . . . . . . . . 8 . . Robot Hit Streak 37 | 6 10 10 21 5 11 25 10 . 14 16 16 9 13 7 . 9 4 3 5 . . 3 . 5 6 8 2 . 37 4 7 Robot Miss Streak 27 | 2 7 3 7 6 5 4 2 . 1 8 2 5 4 1 . 4 3 . 1 . . 3 . 4 2 8 . . 18 27 19 Penetration Max 2 | . . . . . . . . . . . . 1 1 . . . . . . . . . . . . 2 . . 1 2 1 Secondary Targets 32 | . 2 . 2 4 . 1 . . . 5 . . 5 . . . . . . . . . . . . 4 . . 8 1 . Max Gunslinging Chain 1 | . 1 . 1 1 . 1 . . . 1 . . 1 . . . . . . . . . . . . 1 . . 1 1 . Shots Hit Robots 1944 | 11 105 70 323 57 166 153 31 2 14 177 17 30 105 15 . 35 9 2 9 6 2 12 5 15 21 99 1 1 295 108 48 Core Hits 1122 | 6 45 21 120 35 43 60 10 . 9 138 6 16 50 6 . 24 4 154 49 13 1 3 5 46 4 46 1 1 144 41 21 Critical Kills 36 | . . 1 1 . . . . . 1 . . 2 2 . . . . . . . . 1 . 4 . 3 1 . 11 6 3 Critical Parts Destroyed 58 | . . . 1 . . 1 . . . 1 . 7 2 . . . . . 1 . . 1 . 8 1 8 . . 9 8 10 Critical Strikes 121 | . 2 1 2 . . 1 . . 1 1 . 10 4 . . 1 1 . 2 . . 3 . 12 3 11 1 . 30 17 18 Meltdown 3 | . . 1 . . . . . . . . . . . . . . . . . . . . . . . . . . . . 2 Destroy 101 | . . . 2 . . 1 . . 1 1 . 10 4 . . . . . 2 . . 2 . 12 1 11 1 . 26 15 12 Corrupt 4 | . 2 . . . . . . . . . . . . . . . 1 . . . . . . . 1 . . . . . . Smash 6 | . . . . . . . . . . . . . . . . . . . . . . . . . . . . . . 2 4 Sever 3 | . . . . . . . . . . . . . . . . 1 . . . . . 1 . . 1 . . . . . . Impale 3 | . . . . . . . . . . . . . . . . . . . . . . . . . . . . . 3 . . Detonate 1 | . . . . . . . . . . . . . . . . . . . . . . . . . . . . . 1 . . Melee Attacks 338 | . . . 5 1 35 8 . 2 19 6 . 14 41 20 . 28 . 1 6 10 12 11 5 9 27 14 9 15 21 4 15 Impact 29 | . . . 5 1 1 . . . . . . . . . . . . . . . . . . . . . . . 3 4 15 Slashing 273 | . . . . . 33 8 . . 4 1 . 14 41 18 . 28 . 1 6 10 12 11 5 9 26 14 9 15 8 . . Piercing 30 | . . . . . . . . . 15 5 . . . . . . . . . . . . . . . . . . 10 . . Sneak Attacks 69 | . . . . . 7 . . 2 3 2 . 6 5 3 . 6 . . 3 3 2 6 . 1 6 . . . 7 1 6 Combat Hostiles . | . . . . . . . . . . . . . . . . . . . . . . . . . . . . . . . . Follow-up Attacks . | . . . . . . . . . . . . . . . . . . . . . . . . . . . . . . . . Damage Inflicted 72879 | 133 1582 1407 5378 977 2075 2458 509 . 372 3435 396 1563 2961 459 . 2430 278 11844 3839 1441 165 633 431 3452 1024 3665 8 62 12099 4045 3758 Guns 34270 | 133 1022 . 4121 977 1663 2417 509 . 160 3100 . 394 2442 125 . 63 . . 89 . . 26 . . . 3441 8 . 9258 3639 683 Cannons 6136 | . 560 1226 1220 . . . . . 16 . 396 284 . . . 171 278 . . . . 65 . 289 232 116 . . 527 73 683 Explosions 23000 | . . 177 . . . . . . . . . . . . . 1223 . 11844 3421 977 . . . 3072 . . . . 1299 51 936 Melee 9432 | . . . . . 412 41 . . 196 335 . 885 519 334 . 973 . . 329 464 165 542 431 91 792 108 . 62 1015 282 1456 Ramming 41 | . . 4 37 . . . . . . . . . . . . . . . . . . . . . . . . . . . . Kinetic 35617 | . 501 363 5341 977 1663 2417 509 . 176 3100 . 629 2442 125 . 63 . . 89 . . 91 . 289 11 3441 8 . 8931 3712 739 Thermal 3035 | 133 580 863 . . . . . . . . . 49 . . . 296 . . . . . . . . . . . . 487 . 627 Explosive 21961 | . . 177 . . . . . . . . . . . . . 927 . 11844 3421 977 . . . 3072 . . . . 1170 . 373 Electromagnetic 1683 | . 501 . . . . . . . . . 396 . . . . 171 278 . . . . . . . 221 116 . . . . . Impact 2352 | . . . . . . . . . . . . . . . . . . . . . . . . . . . . . . 333 2019 Slashing 6610 | . . . . . 412 41 . . 196 95 . 885 519 334 . 973 . . 329 464 165 542 431 91 792 108 . 62 171 . . Piercing 1084 | . . . . . . . . . . 240 . . . . . . . . . . . . . . . . . . 844 . . Entropic 496 | . . . . . . . . . . . . . . . . . . . . . . . . . . . . . 496 . . Highest Corruption 10 | . . . 4 4 . . . . . . . 10 . 4 10 10 . 1 1 . . . . 1 . 7 2 2 10 1 6 Average Corruption 4 | . . . 3 4 . . . . . . . 5 . 4 4 5 . 1 1 . . . . 1 . 5 2 2 7 1 2 Corruption Purged 20 | . . . . . . . . . . . . 10 . . . 10 . . . . . . . . . . . . . . . Corruption Blocked . | . . . . . . . . . . . . . . . . . . . . . . . . . . . . . . . . Effects 245 | . . . 51 29 . . . . . . . 3 . . . 3 . 2 10 . . . . 4 . 15 1 1 118 1 7 Message Errors 55 | . . . 11 3 . . . . . . . 2 . . . . . 2 2 . . . . 1 . 4 . . 27 . 3 Matter Fused 46 | . . . 8 10 . . . . . . . 1 . . . 2 . . 2 . . . . . . 1 1 . 21 . . Heat Flow Errors 31 | . . . 8 4 . . . . . . . . . . . . . . . . . . . 1 . . . . 17 . 1 Energy Discharges 19 | . . . 6 1 . . . . . . . . . . . . . . 3 . . . . 2 . 2 . . 4 . 1 Parts Rejected 5 | . . . . 1 . . . . . . . . . . . . . . . . . . . . . . . . 4 . . Parts Fused 3 | . . . 1 1 . . . . . . . . . . . . . . 1 . . . . . . . . . . . . Data Loss (minor) 36 | . . . 10 6 . . . . . . . . . . . . . . . . . . . . . 2 . 1 15 1 1 Data Loss (major) 16 | . . . 1 . . . . . . . . . . . . . . . 1 . . . . . . 3 . . 10 . 1 Misfires 5 | . . . 2 1 . . . . . . . . . . . 1 . . 1 . . . . . . . . . . . . Alerts 5 | . . . 2 1 . . . . . . . . . . . . . . . . . . . . . . . . 2 . . Misdirections 5 | . . . . . . . . . . . . . . . . . . . . . . . . . . . . . 5 . . Weapon Failures 19 | . . . 2 1 . . . . . . . . . . . . . . . . . . . . . 3 . . 13 . . Overload Shots . | . . . . . . . . . . . . . . . . . . . . . . . . . . . . . . . . Overflow Damage 3581 | . . 15 70 . 85 20 . . . 58 . 213 42 27 . 351 . 243 278 . 49 215 . 63 113 . . . 556 204 979 Projectiles 114 | . . 15 70 . . . . . . . . . . . . . . . . . . . . 24 . . . . . . 5 Explosions 578 | . . . . . . . . . . . . . . . . 106 . 243 102 . . . . 39 . . . . . 25 63 Melee 2889 | . . . . . 85 20 . . . 58 . 213 42 27 . 245 . . 176 . 49 215 . . 113 . . . 556 179 911 Knockbacks 42 | . . 3 10 . . . . . . . . 1 . . . . . . . . . . . . . . . . . 12 16 Impact 15 | . . . . . . . . . . . . . . . . . . . . . . . . . . . . . . 2 13 Kinetic 24 | . . 3 8 . . . . . . . . 1 . . . . . . . . . . . . . . . . . 9 3 Secondary 3 | . . . 2 . . . . . . . . . . . . . . . . . . . . . . . . . . 1 . Self-Inflicted Damage 294 | . . 60 . . . . . . . . . . . . . . . . . . . . . . . . . . 201 . 33 Shots 6 | . . 2 . . . . . . . . . . . . . . . . . . . . . . . . . . 3 . 1 Rammed 7 | . . 1 5 . . . . . . 1 . . . . . . . . . . . . . . . . . . . . . Targets Rammed 8 | . . 1 6 . . . . . . 1 . . . . . . . . . . . . . . . . . . . . . Kicked . | . . . . . . . . . . . . . . . . . . . . . . . . . . . . . . . . Crushed 1 | . . . 1 . . . . . . . . . . . . . . . . . . . . . . . . . . . . Highest Temperature 314 | . 156 314 249 251 254 165 159 . 58 312 . 33 208 3 . 93 65 12 27 7 2 16 6 107 88 228 185 74 199 103 189 Average Temperature 58 | . 38 86 63 112 71 36 73 . 23 108 . 24 74 2 . 23 25 4 9 1 1 1 2 73 45 79 60 27 94 79 83 Received Heat Transfer 3044 | . 273 309 600 27 144 162 27 . 12 170 45 9 336 45 . 63 . . . . . . . 9 36 48 9 . 633 9 78 Thermoelectric Energy+ 6148 | . . . . . . . . . . . . . . . . . . . . . . . . . . . . . 784 4328 1036 Effects 7 | . . . . . . . . . . 4 . . . . . . . . . . . . . . . 3 . . . . . Energy Bleed 1 | . . . . . . . . . . 1 . . . . . . . . . . . . . . . . . . . . . Interference 6 | . . . . . . . . . . 3 . . . . . . . . . . . . . . . 3 . . . . . Siege Activations . | . . . . . . . . . . . . . . . . . . . . . . . . . . . . . . . . Martial Activations . | . . . . . . . . . . . . . . . . . . . . . . . . . . . . . . . . Shielding Activations . | . . . . . . . . . . . . . . . . . . . . . . . . . . . . . . . . Robots Disrupted . | . . . . . . . . . . . . . . . . . . . . . . . . . . . . . . . . Combat Hostiles . | . . . . . . . . . . . . . . . . . . . . . . . . . . . . . . . . Robots Corrupted 10 | . . . . . . . . . . . 2 . . . . . 1 . . . . . . . 1 . . . . 1 5 Combat Hostiles 9 | . . . . . . . . . . . 2 . . . . . 1 . . . . . . . 1 . . . . . 5 Parts Fried 28 | . 3 1 1 . . . . . . . 1 . . . . 1 6 . . . . . . . 2 . . . . 2 11 Impact Corruptions 26 | . . . 1 . . . . . . . . . . . . . . . . . . . . . . . . . . 4 21 Robots Melted 4 | . . 2 . . . . . . . . . . . . . . . . . . . . . . . . . . . . 2 Combat Hostiles 4 | . . 2 . . . . . . . . . . . . . . . . . . . . . . . . . . . . 2 Parts Melted 11 | 1 2 4 . . . . . . . 1 . . . . . . . 1 . . . . . . . . . . 2 . . Heat Transferred 4354 | 300 1234 1813 . . . . . . . . . 74 . . . 200 . . . . . . . . . . . . 432 . 301 Parts Sabotaged . | . . . . . . . . . . . . . . . . . . . . . . . . . . . . . . . . Parts Stolen . | . . . . . . . . . . . . . . . . . . . . . . . . . . . . . . . . Parts Stripped . | . . . . . . . . . . . . . . . . . . . . . . . . . . . . . . . . Power Chain Reactions . | . . . . . . . . . . . . . . . . . . . . . . . . . . . . . . . . Alert | -11 -10 -10 -9 -9 -8 -8 -8 -8 -6 -6 -6 -6 -6 -5 -5 -5 -5 -5 -4 -4 -4 -4 -4 -3 -3 -3 -2 -2 -2 -1 -1 ------- Run | Yrd Mat Min Mat Min Mat Sto Rec Scr Fac Ext Cet Arc Hub Fac Was Fac Upp War Pro Fac Upp Upp Zhi Pro Res Tes Res Qua Frg Acc Com Maximum Alert Level 4 | . 1 1 3 2 . 1 . . . 3 2 1 3 1 . 2 . . . 1 . . . . . 1 . 1 4 4 3 Low Security (%) 52 | 100 52 98 15 48 100 49 100 . 100 56 . 73 46 70 100 42 . . . 34 . . . . 100 68 100 25 17 . . Level 1 19 | . 47 1 23 44 . 50 . . . 1 2 26 33 29 . 22 . . . 65 . . . . . 31 . 74 7 . . Level 2 11 | . . . 40 7 . . . . . 7 97 . 6 . . 35 . . . . . . . . . . . . 11 . . Level 3 14 | . . . 19 . . . . . . 34 . . 12 . . . . . . . . . . . . . . . 54 63 100 Level 4 1 | . . . . . . . . . . . . . . . . . . . . . . . . . . . . . 9 36 . Level 5 . | . . . . . . . . . . . . . . . . . . . . . . . . . . . . . . . . High Security . | . . . . . . . . . . . . . . . . . . . . . . . . . . . . . . . . Max Security . | . . . . . . . . . . . . . . . . . . . . . . . . . . . . . . . . Sterilizations 1 | . . . 1 . . . . . . . . . . . . . . . . . . . . . . . . . . . . Peak Influence 1338 | 10 350 212 1078 427 135 368 87 . 51 1044 611 229 738 385 71 516 . . . 295 . . . . 69 398 192 258 1338 1255 1082 Initial 802 | . . 126 . 417 5 50 59 . . . 557 160 11 361 71 49 . . . 137 . . . . 63 . 42 108 139 802 799 Average 313 | 2 196 44 513 218 23 201 49 . 11 414 508 147 255 192 71 262 . . . 209 . . . . 19 174 96 208 718 1055 941 Influence Increases 16716 | 25 990 370 1683 116 425 729 183 . 124 1658 309 195 1199 247 . 731 80 1718 761 233 . 50 5 377 245 628 260 220 2025 557 573 Destroy 0b10 Robot/C 7960 | . 500 280 1000 80 80 400 40 . 40 720 160 80 500 60 . 180 20 1280 560 80 . 20 . 300 20 260 20 . 820 260 200 Destroy 0b10 Robot/NC 810 | 25 50 10 140 20 70 70 20 . 5 50 10 35 40 10 . 30 . 25 5 20 . 5 5 10 25 20 . 5 50 25 30 Destroy Leader 1126 | . 120 40 260 10 42 116 . . 20 76 . . 120 10 . 22 . . 40 14 . 10 . 30 14 34 10 2 42 54 40 Allied During Kill 1349 | . . 5 . 5 . . . . . 618 119 31 3 . . . . 398 156 . . . . 7 7 . . . . . . Successful Hack 817 | . 15 . 76 . 26 33 3 . 14 11 . . 56 59 . 134 . . . . . . . . 50 65 113 84 40 38 . Select Force Hacks 150 | . 30 . . . . . 120 . . . . . . . . . . . . . . . . . . . . . . . . Disable Machine 960 | . 90 . 90 . 30 30 . . . 60 15 45 120 . . 60 . . . . . . . . 15 105 15 75 165 15 30 Anti-Garrison Action 350 | . . . . . . . . . . . . . 150 . . . . . . . . . . . . . . . 200 . . Destroy Structure 839 | . 5 20 12 1 12 5 . . 15 18 5 4 45 18 . 140 . . . 44 . . . . 24 24 57 39 33 150 168 Partial Spotted 720 | . 15 . . . 90 45 . . . 75 . . 45 . . 75 . . . 75 . . . . 45 30 30 15 135 . 45 Lose Combat Pursuer 1635 | . 165 15 105 . 75 30 . . 30 30 . . 120 90 . 90 60 15 . . . 15 . 30 45 90 15 . 540 15 60 Influence Decreases 15704 | 25 665 695 613 1171 321 695 332 4 124 662 905 560 496 781 133 309 505 340 1988 142 275 85 5 283 339 552 144 164 935 646 810 Entered New Map 5410 | . . 199 . 653 10 69 94 4 . . 439 240 24 377 133 22 183 68 1446 82 115 8 . . 31 . 34 84 109 536 450 Time Decay 8336 | 25 665 472 610 518 304 416 238 . 123 452 246 270 352 214 . 224 322 272 422 60 160 77 5 273 220 240 100 80 726 90 160 Lost Part 542 | . . 10 . . . 10 . . . 10 20 10 80 40 . 20 . . . . . . . 10 . 12 10 . 90 20 200 Lost Ally 878 | . . 14 3 . 7 200 . . 1 200 200 40 40 . . . . . 120 . . . . . 43 . . . 10 . . Purge Threat 538 | . . . . . . . . . . . . . . 150 . 43 . . . . . . . . 45 300 . . . . . Squads Dispatched 92 | . 7 . 9 . 9 3 . . 1 4 . . 16 4 . 5 . . 1 1 . . . 1 8 4 3 1 8 2 5 Investigation 30 | . 3 . 3 . 1 . . . . 2 . . . 3 . 3 . . . . . . . . 4 1 1 . 6 2 1 Extermination 9 | . . . . . . . . . . . . . 2 1 . 1 . . . . . . . . . 2 1 1 . . 1 Reinforcement 32 | . 4 . 3 . 4 1 . . 1 2 . . 6 . . 1 . . . 1 . . . . 4 1 1 . 2 . 1 Assault 12 | . . . 3 . . 2 . . . . . . 3 . . . . . 1 . . . . 1 . . . . . . 2 Garrison 9 | . . . . . 4 . . . . . . . 5 . . . . . . . . . . . . . . . . . . Intercept . | . . . . . . . . . . . . . . . . . . . . . . . . . . . . . . . . Searches Triggered . | . . . . . . . . . . . . . . . . . . . . . . . . . . . . . . . . Unchained Authorized 5 | . . . . . . . . . . . . . . 1 . 1 1 . . . . . . . . 1 1 . . . . Construction Impeded 4 | . . . 1 . . . . . . 1 . . 1 . . . . . . . . . . . 1 . . . . . . Haulers Reinforced 4 | . . . . . . . . . . . . . . . . 1 . . . 1 . . . . 2 . . . . . . Active Scanning Responses . | . . . . . . . . . . . . . . . . . . . . . . . . . . . . . . . . Cargo Convoy Interrupts . | . . . . . . . . . . . . . . . . . . . . . . . . . . . . . . . . Stealth | -11 -10 -10 -9 -9 -8 -8 -8 -8 -6 -6 -6 -6 -6 -5 -5 -5 -5 -5 -4 -4 -4 -4 -4 -3 -3 -3 -2 -2 -2 -1 -1 --------- Run | Yrd Mat Min Mat Min Mat Sto Rec Scr Fac Ext Cet Arc Hub Fac Was Fac Upp War Pro Fac Upp Upp Zhi Pro Res Tes Res Qua Frg Acc Com Distress Signals 53 | . 2 . 6 . 5 2 . . 2 5 1 . 2 . . 1 . 1 . . . . . . 9 . . . 13 1 3 Communications Jammed 6 | . . . . . . . . . . . . . . . . . . . . . . . . . . . . 6 . . . Distress Signals 6 | . . . . . . . . . . . . . . . . . . . . . . . . . . . . 6 . . . Times Spotted 804 | . 44 16 75 19 37 23 2 . 13 40 7 16 53 21 3 24 6 83 11 9 . 7 . 18 12 28 10 7 170 16 34 Peak Tracking Total 16 | . 7 3 6 4 7 6 1 . 6 6 4 2 14 9 3 5 3 12 7 7 . 2 . 9 4 5 7 6 16 8 16 Tactical Retreats 68 | . 5 1 5 1 2 1 . . 1 1 . . 4 2 . 4 1 1 . . . 1 . 2 3 5 1 . 22 1 4 Traps | -11 -10 -10 -9 -9 -8 -8 -8 -8 -6 -6 -6 -6 -6 -5 -5 -5 -5 -5 -4 -4 -4 -4 -4 -3 -3 -3 -2 -2 -2 -1 -1 ------- Run | Yrd Mat Min Mat Min Mat Sto Rec Scr Fac Ext Cet Arc Hub Fac Was Fac Upp War Pro Fac Upp Upp Zhi Pro Res Tes Res Qua Frg Acc Com Traps Triggered 33 | . . . 3 . 1 1 . . . 1 . . 1 1 . 1 . . . . . . . . . . . . 17 . 7 Indirectly . | . . . . . . . . . . . . . . . . . . . . . . . . . . . . . . . . Trap Hack Attempts . | . . . . . . . . . . . . . . . . . . . . . . . . . . . . . . . . Triggered . | . . . . . . . . . . . . . . . . . . . . . . . . . . . . . . . . Disarmed . | . . . . . . . . . . . . . . . . . . . . . . . . . . . . . . . . Reprogrammed . | . . . . . . . . . . . . . . . . . . . . . . . . . . . . . . . . Reused . | . . . . . . . . . . . . . . . . . . . . . . . . . . . . . . . . Traps Extracted . | . . . . . . . . . . . . . . . . . . . . . . . . . . . . . . . . Installed . | . . . . . . . . . . . . . . . . . . . . . . . . . . . . . . . . Triggered . | . . . . . . . . . . . . . . . . . . . . . . . . . . . . . . . . Most Traps Carried 3 | . . . . . . . . 3 1 . . . . . . . . . . . . . . . . . . . . . . Machines | -11 -10 -10 -9 -9 -8 -8 -8 -8 -6 -6 -6 -6 -6 -5 -5 -5 -5 -5 -4 -4 -4 -4 -4 -3 -3 -3 -2 -2 -2 -1 -1 ---------- Run | Yrd Mat Min Mat Min Mat Sto Rec Scr Fac Ext Cet Arc Hub Fac Was Fac Upp War Pro Fac Upp Upp Zhi Pro Res Tes Res Qua Frg Acc Com Machines Disabled 77 | . 6 . 6 . 2 2 . . . 7 1 3 9 . . 4 . 2 1 . . 1 . 1 1 7 1 5 15 1 2 Max in Single Turn 2 | . 1 . 1 . 1 1 . . . 1 1 1 2 . . 2 . 1 1 . . 1 . 1 1 1 1 1 2 1 1 Garrison Access 5 | . . . . . . 1 . . . . . . 1 . . . . . . . . . . . 1 1 . . 1 . . Network Hub 4 | . . . . . . . . . . . . . 4 . . . . . . . . . . . . . . . . . . Machines Repaired . | . . . . . . . . . . . . . . . . . . . . . . . . . . . . . . . . Machines Dismantled 8 | . . . . . . . . . . 3 1 . 3 . . . . 1 . . . . . . . . . . . . . Machines Sabotaged . | . . . . . . . . . . . . . . . . . . . . . . . . . . . . . . . . Overloaded Fab Kills . | . . . . . . . . . . . . . . . . . . . . . . . . . . . . . . . . Hacking | -11 -10 -10 -9 -9 -8 -8 -8 -8 -6 -6 -6 -6 -6 -5 -5 -5 -5 -5 -4 -4 -4 -4 -4 -3 -3 -3 -2 -2 -2 -1 -1 --------- Run | Yrd Mat Min Mat Min Mat Sto Rec Scr Fac Ext Cet Arc Hub Fac Was Fac Upp War Pro Fac Upp Upp Zhi Pro Res Tes Res Qua Frg Acc Com Machines Accessed 160 | . 6 . 15 . 11 15 6 2 7 11 3 . 10 8 . 11 . 5 . . . 2 4 . 10 6 7 7 8 5 1 Terminals 92 | . 4 . 9 . 6 11 1 . 4 9 3 . 9 2 . 5 . . . . . 1 . . 4 3 7 6 4 3 1 Fabricators 6 | . . . . . . . . . 2 . . . . . . 2 . . . . . . . . 2 . . . . . . Repair Stations 8 | . . . 2 . . 1 . . . . . . . 2 . 1 . . . . . . . . . 1 . . . 1 . Recycling Units 24 | . 2 . 2 . 2 2 5 . . 2 . . . 1 . 2 . . . . . . . . 2 . . . 3 1 . Scanalyzers 11 | . . . 2 . 2 . . . 1 . . . . 2 . 1 . . . . . . . . 1 1 . 1 . . . Garrison Access 7 | . . . . . 1 1 . . . . . . 1 1 . . . . . . . . . . 1 1 . . 1 . . Total Hacks 570 | . 23 . 50 . 42 34 15 6 15 34 8 . 30 35 . 57 . 15 . . . 2 17 . 37 26 50 29 32 11 2 Successful 269 | . 10 . 23 . 25 21 11 6 7 12 3 . 11 13 . 31 . 15 . . . 2 17 . 12 11 13 14 8 4 . Failed 296 | . 13 . 26 . 17 12 4 . 8 21 5 . 19 22 . 25 . . . . . . . . 24 15 37 15 24 7 2 Catastrophic 66 | . 1 . 3 . 2 1 . . 4 2 2 . 4 10 . 5 . . . . . . . . 6 2 9 1 8 4 2 Database Lockouts 5 | . . . 1 . . 1 . . . 1 . . . . . 1 . . . . . . . . 1 . . . . . . Manual 216 | . 13 . 22 . 19 16 10 . 3 9 . . 14 3 . 23 . . . . . . . . 8 8 26 16 21 5 . Terminals 352 | . 14 . 31 . 21 24 2 . 8 32 8 . 29 13 . 33 . . . . . 1 . . 22 17 50 25 15 5 2 Fabricators 10 | . . . . . . . . . 3 . . . . . . 4 . . . . . . . . 3 . . . . . . Repair Stations 31 | . . . 5 . . 3 . . . . . . . 8 . 7 . . . . . . . . . 5 . . . 3 . Recycling Units 73 | . 9 . 6 . 8 6 13 . . 2 . . . 1 . 6 . . . . . . . . 4 . . . 15 3 . Scanalyzers 55 | . . . 8 . 11 . . . 4 . . . . 11 . 7 . . . . . . . . 7 3 . 4 . . . Garrison Access 10 | . . . . . 2 1 . . . . . . 1 2 . . . . . . . . . . 1 1 . . 2 . . Terminal Hacks 135 | . 2 . 10 . 4 9 1 6 . 9 3 . 8 4 . 13 . 15 . . . 2 17 . 3 5 10 8 3 3 . Record 23 | . . . . . . . . 5 . . 3 . . . . . . 9 . . . 1 5 . . . . . . . . Part Schematic 14 | . . . . . . 3 1 . . 1 . . 3 . . 1 . . . . . . 4 . 1 . . . . . . Robot Analysis 8 | . 1 . 2 . . . . . . . . . . . . 1 . . . . . . 4 . . . . . . . . Prototype ID Bank 18 | . . . 2 . 1 1 . . . 1 . . . . . 1 . 5 . . . . 4 . 1 . 2 . . . . Open Door 12 | . . . . . . 4 . . . 2 . . . . . . . 1 . . . 1 . . . . 1 . . 3 . Branch Access Points 5 | . . . 1 . 1 . . . . . . . . 1 . 1 . . . . . . . . . . 1 . . . . Emergency Access Points 2 | . . . 1 . . . . . . . . . . . . . . . . . . . . . . 1 . . . . . Terminal Index 4 | . 1 . . . . . . . . . . . 1 . . 1 . . . . . . . . . . . 1 . . . Fabricator Index 1 | . . . . . . . . . . . . . . . . 1 . . . . . . . . . . . . . . . Repair Station Index 1 | . . . . . . . . . . . . . . . . . . . . . . . . . . . 1 . . . . Recycling Unit Index 3 | . . . . . . . . . . . . . . . . 1 . . . . . . . . . . 1 1 . . . Scanalyzer Index 2 | . . . . . . . . . . . . . . . . 1 . . . . . . . . . . . 1 . . . Garrison Index 3 | . . . . . . . . . . . . . . . . 1 . . . . . . . . . 1 . . 1 . . Alert Level 2 | . . . 1 . . . . . . . . . . 1 . . . . . . . . . . . . . . . . . Unreport Threat 5 | . . . . . . . . . . . . . . 1 . 1 . . . . . . . . 1 2 . . . . . Locate Traps 9 | . . . . . . 1 . . . 1 . . 1 . . 1 . . . . . . . . . 1 2 1 1 . . Dispatch Records 1 | . . . . . . . . . . 1 . . . . . . . . . . . . . . . . . . . . . Maintenance Status 1 | . . . . . . . . . . . . . . . . . . . . . . . . . . . . 1 . . . Security Status 2 | . . . . . . . . . . . . . 1 . . . . . . . . . . . . . . 1 . . . Hauler Manifests 7 | . . . 1 . 2 . . . . 1 . . 1 . . 2 . . . . . . . . . . . . . . . Registered Components 5 | . . . 1 . . . . . . 1 . . 1 . . . . . . . . . . . . . 1 1 . . . Zone Layout 5 | . . . 1 . . . . . . 1 . . . 1 . . . . . . . . . . . . 1 1 . . . Proto ID Catalog 2 | . . . . . . . . 1 . . . . . . . . . . . . . . . . . . . . 1 . . Fabricator Hacks 4 | . . . . . . . . . 2 . . . . . . 1 . . . . . . . . 1 . . . . . . Network Status 3 | . . . . . . . . . 1 . . . . . . 1 . . . . . . . . 1 . . . . . . Build 1 | . . . . . . . . . 1 . . . . . . . . . . . . . . . . . . . . . . Repair Station Hacks 15 | . . . 2 . . 2 . . . . . . . 4 . 5 . . . . . . . . . 2 . . . . . Scan Component 8 | . . . 1 . . 1 . . . . . . . 2 . 3 . . . . . . . . . 1 . . . . . Repair 7 | . . . 1 . . 1 . . . . . . . 2 . 2 . . . . . . . . . 1 . . . . . Recycling Unit Hacks 12 | . 2 . . . 1 2 5 . . . . . . . . 1 . . . . . . . . 1 . . . . . . Retrieve Components 12 | . 2 . . . 1 2 5 . . . . . . . . 1 . . . . . . . . 1 . . . . . . Scanalyzer 32 | . . . 4 . 11 . . . 4 . . . . 3 . 3 . . . . . . . . 3 2 . 2 . . . Insert Component 11 | . . . 1 . 4 . . . 1 . . . . 3 . 1 . . . . . . . . . . . 1 . . . Analyze 7 | . . . . . 4 . . . 2 . . . . . . 1 . . . . . . . . . . . . . . . Retrieve Study 14 | . . . 3 . 3 . . . 1 . . . . . . 1 . . . . . . . . 3 2 . 1 . . . Garrison Access Hacks 4 | . . . . . 1 1 . . . . . . . . . . . . . . . . . . 1 1 . . . . . Unlock Access 1 | . . . . . 1 . . . . . . . . . . . . . . . . . . . . . . . . . . Seal Access 3 | . . . . . . 1 . . . . . . . . . . . . . . . . . . 1 1 . . . . . Unauthorized Hacks 66 | . 6 . 7 . 8 7 5 . 1 3 . . 3 2 . 8 . . . . . . . . 3 1 3 4 5 . . Terminals 37 | . 3 . 5 . 6 4 . . 1 1 . . 3 . . 4 . . . . . . . . 1 . 3 4 2 . . Track 7 | . . . . . . . . . . . . . 2 . . 2 . . . . . . . . . . 2 1 . . . Assimilate 6 | . . . . . 1 . . . 1 . . . . . . . . . . . . . . . 1 . 1 1 1 . . Botnet 6 | . . . . . . 3 . . . 1 . . . . . 1 . . . . . . . . . . . 1 . . . Operators 2 | . 1 . . . . . . . . . . . . . . . . . . . . . . . . . . 1 . . . Skim 16 | . 2 . 5 . 5 1 . . . . . . 1 . . 1 . . . . . . . . . . . . 1 . . Fabricators 2 | . . . . . . . . . . . . . . . . 2 . . . . . . . . . . . . . . . Haulers 2 | . . . . . . . . . . . . . . . . 2 . . . . . . . . . . . . . . . Repair Stations 3 | . . . 1 . . . . . . . . . . 1 . . . . . . . . . . . 1 . . . . . Patch 3 | . . . 1 . . . . . . . . . . 1 . . . . . . . . . . . 1 . . . . . Recycling Units 23 | . 3 . 1 . 2 3 5 . . 2 . . . 1 . 2 . . . . . . . . 2 . . . 2 . . Reject 8 | . 2 . 1 . 2 2 1 . . . . . . . . . . . . . . . . . . . . . . . . Mask 1 | . . . . . . 1 . . . . . . . . . . . . . . . . . . . . . . . . . Tunnel 5 | . 1 . . . . . 4 . . . . . . . . . . . . . . . . . . . . . . . . Fedlink 9 | . . . . . . . . . . 2 . . . 1 . 2 . . . . . . . . 2 . . . 2 . . Scanalyzers . | . . . . . . . . . . . . . . . . . . . . . . . . . . . . . . . . Garrison Access 1 | . . . . . . . . . . . . . . . . . . . . . . . . . . . . . 1 . . Jam 1 | . . . . . . . . . . . . . . . . . . . . . . . . . . . . . 1 . . Data Cores Recovered 2 | . . . . . . . . . . . . . . 1 . . . . . . . . . . 1 . . . . . . Used 1 | . . . . . . . . . . . . . . 1 . . . . . . . . . . . . . . . . . Hacking Detections 118 | . 6 . 13 . 11 11 4 . 6 6 3 . 10 6 . 8 . . . . . . . . 7 4 6 7 6 3 1 Full Trace Events 16 | . 2 . 5 . 1 1 1 . . . . . . 1 . . . . . . . . . . . . 1 . 1 2 1 Feedback Events 2 | . . . . . . . . . . . . . . . . . . . . . . . . . . . 1 . . 1 . Corruption 1 | . . . . . . . . . . . . . . . . . . . . . . . . . . . . . . 1 . Hackware Fried 1 | . . . . . . . . . . . . . . . . . . . . . . . . . . . 1 . . . . Feedback Blocked . | . . . . . . . . . . . . . . . . . . . . . . . . . . . . . . . . Robot Schematics Acquired 3 | . . . . . . . . . . . . . . . . . . . . . . . . . . . . . 3 . . Robots Built . | . . . . . . . . . . . . . . . . . . . . . . . . . . . . . . . . Authchips . | . . . . . . . . . . . . . . . . . . . . . . . . . . . . . . . . Time . | . . . . . . . . . . . . . . . . . . . . . . . . . . . . . . . . Total Robot Build Rating . | . . . . . . . . . . . . . . . . . . . . . . . . . . . . . . . . Part Schematics Acquired 29 | . . . . . 4 3 1 . 1 1 . . 3 . . 2 . . . . . . 4 . 1 . . . 9 . . Parts Built 2 | . . . . . . . . . 2 . . . . . . . . . . . . . . . . . . . . . . Authchips . | . . . . . . . . . . . . . . . . . . . . . . . . . . . . . . . . Time 64 | . . . . . . . . . 64 . . . . . . . . . . . . . . . . . . . . . . Total Part Build Rating 16 | . . . . . . . . . 16 . . . . . . . . . . . . . . . . . . . . . . Part Studies Acquired 13 | . . . 2 . 3 . . . 1 . . . . . . 1 . . . . . . . . 3 2 . 1 . . . Parts Repaired 7 | . . . 1 . . 1 . . . . . . . 2 . 2 . . . . . . . . . 1 . . . . . Time 398 | . . . 32 . . 60 . . . . . . . 187 . 90 . . . . . . . . . 29 . . . . . Parts Recycled . | . . . . . . . . . . . . . . . . . . . . . . . . . . . . . . . . Recycled Matter . | . . . . . . . . . . . . . . . . . . . . . . . . . . . . . . . . Retrieved Matter . | . . . . . . . . . . . . . . . . . . . . . . . . . . . . . . . . Retrieved Components 42 | . 14 . . . 2 2 13 . . . . . . . . 8 . . . . . . . . 3 . . . . . . Parts Scanalyzed 7 | . . . . . 4 . . . 1 . . . . 1 . 1 . . . . . . . . . . . . . . . Part Schematics Acquired 6 | . . . . . 4 . . . 1 . . . . . . 1 . . . . . . . . . . . . . . . Parts Damaged 2 | . . . . . . . . . 1 . . . . 1 . . . . . . . . . . . . . . . . . Bothacking | -11 -10 -10 -9 -9 -8 -8 -8 -8 -6 -6 -6 -6 -6 -5 -5 -5 -5 -5 -4 -4 -4 -4 -4 -3 -3 -3 -2 -2 -2 -1 -1 ------------ Run | Yrd Mat Min Mat Min Mat Sto Rec Scr Fac Ext Cet Arc Hub Fac Was Fac Upp War Pro Fac Upp Upp Zhi Pro Res Tes Res Qua Frg Acc Com Used RIF Installer . | . . . . . . . . . . . . . . . . . . . . . . . . . . . . . . . . Robots Hacked 6 | . . . . . 1 . . 2 . . . . . 2 . . . . . . . . . . 1 . . . . . . Non-combat 4 | . . . . . . . . 1 . . . . . 2 . . . . . . . . . . 1 . . . . . . Combat 2 | . . . . . 1 . . 1 . . . . . . . . . . . . . . . . . . . . . . . Robot Hacks Applied 6 | . . . . . 1 . . 2 . . . . . 2 . . . . . . . . . . 1 . . . . . . parse_system 3 | . . . . . 1 . . 2 . . . . . . . . . . . . . . . . . . . . . . . find_chute 1 | . . . . . . . . . . . . . . 1 . . . . . . . . . . . . . . . . . find_fabricator 1 | . . . . . . . . . . . . . . . . . . . . . . . . . 1 . . . . . . find_recycling 1 | . . . . . . . . . . . . . . 1 . . . . . . . . . . . . . . . . . Relay Couplers Released 3 | . . . . . . . . . . . . . 3 . . . . . . . . . . . . . . . . . . Programmers 3 | . . . . . . . . . . . . . 3 . . . . . . . . . . . . . . . . . . Fabnet Peak Effective % . | . . . . . . . . . . . . . . . . . . . . . . . . . . . . . . . . Robots Rewired 28 | . . . . . . . . . . 19 . . . . . . . 5 2 . . . . 2 . . . . . . . Allies Hacked . | . . . . . . . . . . . . . . . . . . . . . . . . . . . . . . . . Hacks Repelled . | . . . . . . . . . . . . . . . . . . . . . . . . . . . . . . . . Allies | -11 -10 -10 -9 -9 -8 -8 -8 -8 -6 -6 -6 -6 -6 -5 -5 -5 -5 -5 -4 -4 -4 -4 -4 -3 -3 -3 -2 -2 -2 -1 -1 -------- Run | Yrd Mat Min Mat Min Mat Sto Rec Scr Fac Ext Cet Arc Hub Fac Was Fac Upp War Pro Fac Upp Upp Zhi Pro Res Tes Res Qua Frg Acc Com Total Allies 55 | . . 2 . 1 1 12 . 1 1 25 1 . . . . . . 5 2 . . . . 2 1 . . . 1 . . Largest Group 16 | . . 2 1 1 1 12 . 1 1 16 13 4 2 . . . . 5 6 1 . . . 2 3 . . . 1 . . Highest-Rated Group 584 | . . 42 11 31 10 235 . 33 33 584 390 189 138 . . . . 246 301 64 . . . 94 104 . . . 26 . . Highest-Rated Ally 159 | . . 31 11 31 10 31 . 33 33 159 123 117 117 . . . . 64 64 64 . . . 47 47 . . . 26 . . Total Orders 16 | . . . . . . . . 4 1 1 . 1 . . . . . 6 . . . . . 2 . . . . 1 . . STAY 7 | . . . . . . . . 3 1 . . . . . . . . 1 . . . . . 1 . . . . 1 . . FOLLOW 4 | . . . . . . . . 1 . . . . . . . . . 2 . . . . . 1 . . . . . . . GUARD 4 | . . . . . . . . . . 1 . . . . . . . 3 . . . . . . . . . . . . . AID 1 | . . . . . . . . . . . . 1 . . . . . . . . . . . . . . . . . . . Ally Attacks 348 | . . 4 . 9 . 29 . . . 152 62 10 8 . . . . 6 56 . . . . 5 7 . . . . . . Total Damage 7913 | . . 84 . 107 . 392 . . . 3426 1302 191 290 . . . . 170 1653 . . . . 150 148 . . . . . . Kills 54 | . . . . 1 . 2 . . . 24 8 2 2 . . . . 3 12 . . . . . . . . . . . . Allies Corrupted 1 | . . . . . . 1 . . . . . . . . . . . . . . . . . . . . . . . . . Allies Melted 7 | . . . . . . 1 . . . . . . 1 . . . . . . . . . . . . . . . 5 . . Intel | -11 -10 -10 -9 -9 -8 -8 -8 -8 -6 -6 -6 -6 -6 -5 -5 -5 -5 -5 -4 -4 -4 -4 -4 -3 -3 -3 -2 -2 -2 -1 -1 ------- Run | Yrd Mat Min Mat Min Mat Sto Rec Scr Fac Ext Cet Arc Hub Fac Was Fac Upp War Pro Fac Upp Upp Zhi Pro Res Tes Res Qua Frg Acc Com Active Infowar (turns) 16086 | 47 534 . . . 993 249 . . 389 1478 527 587 852 442 17 557 857 1026 1027 135 332 503 159 715 702 543 217 171 3027 . . Optics 15503 | . . . . . 991 249 . . 389 1478 527 587 852 442 17 557 857 1026 1027 135 332 503 159 715 702 543 217 171 3027 . . Sensors 2 | . . . . . 2 . . . . . . . . . . . . . . . . . . . . . . . . . . IFF 1031 | . . . . . . . . . . . . . . . . . . . . . . . . . 64 225 203 166 373 . . Terrain 331 | 20 311 . . . . . . . . . . . . . . . . . . . . . . . . . . . . . . Seismic 436 | 47 389 . . . . . . . . . . . . . . . . . . . . . . . . . . . . . . T.N.C. 99 | . . . . . . . . . . . . . . . . 99 . . . . . . . . . . . . . . . Jamming 478 | . . . . . . . . . . . . . . . . . . . . . . . . . . . 74 171 233 . . ECM 2 | . . . . . . . . . . . . . . . . . . . . . . . . . . . . . 2 . . Robot Analysis Total 8 | . 1 . 2 . . . . . . . . . . . . 1 . . . . . . 4 . . . . . . . . Derelict Logs Recovered 9 | . . 2 . 1 . . . . . . . . . . . . 1 . 2 . 2 1 . . . . . . . . . Drone Launches . | . . . . . . . . . . . . . . . . . . . . . . . . . . . . . . . . Drone Recoveries . | . . . . . . . . . . . . . . . . . . . . . . . . . . . . . . . . Exploration | -11 -10 -10 -9 -9 -8 -8 -8 -8 -6 -6 -6 -6 -6 -5 -5 -5 -5 -5 -4 -4 -4 -4 -4 -3 -3 -3 -2 -2 -2 -1 -1 ------------- Run | Yrd Mat Min Mat Min Mat Sto Rec Scr Fac Ext Cet Arc Hub Fac Was Fac Upp War Pro Fac Upp Upp Zhi Pro Res Tes Res Qua Frg Acc Com Turns Passed 33674 | 95 2818 1940 3749 1424 2770 1004 502 4072 403 1478 527 587 852 442 17 557 857 1026 1027 135 332 503 159 715 702 557 217 171 3518 180 338 Spaces Moved 41716 | 91 1247 693 1273 508 6172 1846 464 2479 699 1498 266 335 1254 707 89 1016 363 1257 1413 392 1018 1836 199 1622 1747 955 473 682 8043 355 724 Core 414 | 91 313 . . . . . . . . 8 . . . . . . . . 2 . . . . . . . . . . . . Treads 4506 | . 934 693 1273 508 3 . . 1095 . . . . . . . . . . . . . . . . . . . . . . . Legs . | . . . . . . . . . . . . . . . . . . . . . . . . . . . . . . . . Wheels . | . . . . . . . . . . . . . . . . . . . . . . . . . . . . . . . . Hover . | . . . . . . . . . . . . . . . . . . . . . . . . . . . . . . . . Flight 36796 | . . . . . 6169 1846 464 1384 699 1490 266 335 1254 707 89 1016 363 1257 1411 392 1018 1836 199 1622 1747 955 473 682 8043 355 724 Fastest Speed 8 | 50 50 240 240 240 32 30 100 100 26 26 29 29 27 19 19 18 18 15 18 18 18 18 18 18 18 16 17 14 8 29 29 Average Speed 51 | 50 179 240 240 240 33 30 100 161 34 30 132 42 27 22 19 18 18 19 18 18 18 18 18 23 23 21 17 14 16 29 29 Slowest Speed 320 | 50 320 240 320 240 240 100 100 240 96 150 242 99 29 98 19 19 18 91 200 18 18 18 18 86 25 95 17 17 100 29 32 Overloaded Moves 77 | . . . . . . . . . . . . . . . . . . 2 . . . . . . . . . . 75 . . Propulsion Burnouts . | . . . . . . . . . . . . . . . . . . . . . . . . . . . . . . . . Robots Hopped 173 | . . . . . 45 7 . . 3 11 . . 18 6 . 7 . 3 . 1 . . . . 2 6 2 . 59 3 . Potential Cave-ins 6 | . . . . . . . . . . . . . . . . . . . . . . . . . . . 4 . 2 . . Cave-ins Triggered 1 | . . . . . . . . . . . . . . 1 . . . . . . . . . . . . . . . . . Teleports 1 | . . . . . . . . . . . . . . . . . . . . . . . . . . . . . 1 . . Exploration Rate (%) 65 | 3 97 97 97 98 94 96 63 92 13 89 88 90 72 15 80 21 27 92 99 14 93 99 63 83 34 92 17 79 69 9 19 Regions Visited 31 Branch Regions 20 Pre-discovered Areas 11 | . 1 . 1 . . . 4 . . 1 . . . . . . . . 1 . . . 3 . . . . . . . . Known Exits Taken 12 | . . . 1 1 1 1 . 1 1 . . . . . . 1 . . . . . . . 1 1 1 1 . . 1 . Unknown Exits Taken 17 | 1 1 1 . . . . 1 . . 1 1 1 1 . . . 1 1 1 1 1 1 1 . . . . 1 1 . . Scrap Searched 23 | . . 2 . 4 . . . 3 . . . . . . . . . . 5 . 2 5 . 2 . . . . . . . Spaces Dug 180 | . . 19 5 1 10 1 . . 15 . . . 28 9 . 10 . 1 . 2 10 4 . 8 12 7 15 13 8 . 2 Terrain Destroyed 1211 | . . 22 11 1 10 1 . . 15 . . 5 43 9 . 103 . 214 219 28 10 4 . 218 12 15 24 13 45 119 70 Melee 148 | . . . 5 1 10 1 . . 15 . . . 28 9 . 10 . 1 . 2 10 3 . 8 12 6 9 9 7 . 2 Projectile 250 | . . 4 6 . . . . . . . . 5 15 . . 1 . . . . . 1 . . . 7 15 4 38 111 43 AOE 799 | . . 18 . . . . . . . . . . . . . 92 . 213 219 26 . . . 210 . . . . . . 21 Terrain Rammed . | . . . . . . . . . . . . . . . . . . . . . . . . . . . . . . . . Walls Destroyed . | . . . . . . . . . . . . . . . . . . . . . . . . . . . . . . . . Machines Disabled . | . . . . . . . . . . . . . . . . . . . . . . . . . . . . . . . . Actions | -11 -10 -10 -9 -9 -8 -8 -8 -8 -6 -6 -6 -6 -6 -5 -5 -5 -5 -5 -4 -4 -4 -4 -4 -3 -3 -3 -2 -2 -2 -1 -1 --------- Run | Yrd Mat Min Mat Min Mat Sto Rec Scr Fac Ext Cet Arc Hub Fac Was Fac Upp War Pro Fac Upp Upp Zhi Pro Res Tes Res Qua Frg Acc Com Total 51352 | 121 1652 819 1624 636 6621 2095 485 2540 828 2335 404 726 1557 952 88 1307 1139 1936 2138 432 1147 1978 313 1906 1993 1144 571 728 9870 450 817 Wait 6252 | . 191 28 86 86 315 116 . 20 57 539 69 329 159 193 . 166 755 547 666 12 118 109 90 164 145 79 47 4 1121 17 24 Move 41368 | 90 1246 692 1272 507 6084 1831 463 2478 692 1477 265 334 1218 695 88 1001 362 1251 1412 389 1017 1835 198 1621 1742 942 468 681 7946 348 723 Hop 144 | . . . . . 42 7 . . 3 9 . . 17 6 . 7 . 2 . 1 . . . . 2 6 2 . 37 3 . Pick Up 318 | 5 46 5 29 2 9 10 2 19 7 8 13 2 12 11 . 20 3 5 3 1 . . 4 5 20 7 5 10 48 6 1 Fast Attach 128 | 6 . 1 7 1 5 3 . . 1 2 . 6 5 5 . 7 . 5 . 5 . 2 4 2 7 6 2 . 46 . . Attach 134 | . 9 1 5 . 12 1 . . 8 4 4 5 6 4 . 13 . 3 2 . . 2 2 4 2 4 . 2 28 5 8 Detach 59 | . 3 . . . . . . . 1 1 3 5 1 1 . 5 . 2 . . . 2 . 3 3 . . . 25 2 2 Swap 375 | 2 16 13 29 5 19 34 5 13 12 24 10 6 25 4 . 9 . 12 3 3 . 2 3 1 11 23 15 2 67 6 1 Drop 424 | 2 34 8 42 2 28 15 3 8 21 10 12 6 12 9 . 22 3 12 3 5 . 2 7 7 24 10 6 10 91 5 5 Fire 1327 | 16 107 70 143 32 72 70 12 . 7 63 19 19 52 4 . 29 16 67 31 6 . 13 . 41 10 53 17 4 269 54 31 Melee 338 | . . . 5 1 35 8 . 2 19 6 . 14 41 20 . 28 . 1 6 10 12 11 5 9 27 14 9 15 21 4 15 Ram 1 | . . . . . . . . . . 1 . . . . . . . . . . . . . . . . . . . . . Kick . | . . . . . . . . . . . . . . . . . . . . . . . . . . . . . . . . Crush 7 | . . 1 6 . . . . . . . . . . . . . . . . . . . . . . . . . . . . Escape Stasis 178 | . . . . . . . . . . . . . . . . . . . . . . . . . . . . . 171 . 7 Rewire 248 | . . . . . . . . . . 167 . . . . . . . 20 12 . . . . 49 . . . . . . . Trap . | . . . . . . . . . . . . . . . . . . . . . . . . . . . . . . . . Miscellaneous 51 | . . . . . . . . . . 24 9 . 9 . . . . 9 . . . . . . . . . . . . . Route ------- -11/Scrapyard -10/Materials (discovered 5 exits: *Mat x3 / [*Min] / [*Sub]) -10/Mines (discovered 3 exits: *Mat x2 / [*Sub]) -9/Materials (discovered 4 exits: *Mat x3 / *Min) -9/Mines (discovered 2 exits: *Mat x2) -8/Materials (discovered 4 exits: [*Fac x2] / *Sto / Gar) -8/Storage (discovered 2 exits: [*Fac] / *Rec) -8/Recycling (discovered 2 exits: *Fac / *Scr) -8/Scraptown (discovered 2 exits: *Fac x2) -6/Factory (discovered 4 exits: *Fac / Low / *Ext x2) -6/Extension (discovered 2 exits: *Fac / *Cet) -6/Cetus (discovered 2 exits: *Fac / [*Arc]) -6/Archives (discovered 3 exits: *Fac / *Hub x2) -6/Hub_04(d) (discovered 3 exits: *Fac x3) -5/Factory (discovered 2 exits: Upp x2) -5/Waste -5/Factory (discovered 3 exits: [*Fac] / *Upp x2) -5/Upper Caves -5/Warlord -4/Proximity Caves -4/Factory (discovered 2 exits: *Res / [*Upp]) -4/Upper Caves -4/Upper Caves (discovered 2 exits: *Res / *Zhi) -4/Zhirov -3/Proximity Caves -3/Research (discovered 3 exits: Res / *Tes x2) -3/Testing -2/Research (discovered 3 exits: *Acc / *Qua x2) -2/Quarantine (discovered 2 exits: [*Sec] / *Frg) -2/Protoforge -1/Access -1/Command To Epsilon Eridani History --------- Turn | Location | Event 14 | -11/Scrapyard | Discovered new exit (range 16) 96 | -11/Scrapyard | Entered Materials 307 | -10/Materials | Build established: Mutant 699 | -10/Materials | Discovered new exit (range 13) 852 | -10/Materials | Discovered new exit (range 15) 1310 | -10/Materials | Discovered new exit (range 9) 1429 | -10/Materials | Discovered new exit (range 8) 1698 | -10/Materials | Discovered new exit (range 11) 1708 | -10/Materials | Core integrity fell below 50% 2914 | -10/Materials | Entered Mines 3004 | -10/Mines | Learned Materials stockpile data 3146 | -10/Mines | Excavation squad dispatched 3146 | -10/Mines | A large section of the Mines collapsed 3302 | -10/Mines | Discovered new exit (range 3) 3562 | -10/Mines | Deemed a non-threat by the Exiles lab entrance 3647 | -10/Mines | Core integrity fell below 20% 4137 | -10/Mines | Found a hidden stash of uninstalled traps 4259 | -10/Mines | Learned Materials non-interactive machine intel 4281 | -10/Mines | Received a Rocket Launcher from a helpful Derelict 4560 | -10/Mines | Discovered new exit (range 7) 4815 | -10/Mines | Discovered new exit (range 10) 4854 | -10/Mines | Entered Materials 4854 | -9/Materials | Accompanied by 1 ally 4854 | -9/Materials | Evolved 2 slots: Weapon x2 4856 | -9/Materials | Loaded intel: 48 non-interactive machine locations 4991 | -9/Materials | Repaired Imp. Treads 5177 | -9/Materials | Build established: Tank 5546 | -9/Materials | Build established: Gunner 5592 | -9/Materials | Identified exit to Mines 6336 | -9/Materials | Discovered new exit (range 7) 6737 | -9/Materials | Central database locked down 6854 | -9/Materials | First assault squad dispatched 6989 | -9/Materials | Discovered new exit (range 4) 7125 | -9/Materials | Learned Storage security intel 7197 | -9/Materials | Learned Recycling recycling unit intel 7257 | -9/Materials | Identified exit to Materials 7305 | -9/Materials | Learned Storage security intel 7392 | -9/Materials | Learned location of 1 exit from Recycling 7455 | -9/Materials | Loaded intel: 27 trap records 7563 | -9/Materials | Learned location of Storage (-8) 8373 | -9/Materials | Sterilization system engaged 8373 | -9/Materials | Non-combat units ordered to evacuate 8473 | -9/Materials | Combat units ordered to evacuate 8603 | -9/Materials | Entered Mines 8606 | -9/Mines | Received a Mining Laser from a helpful Derelict 8642 | -9/Mines | Met a Derelict bent on vengeance 8742 | -9/Mines | Discovered exit to Materials (range 10) 9024 | -9/Mines | Assembled infested the area 9029 | -9/Mines | Assisted by a Guerilla fighting off Assembled 10027 | -9/Mines | Entered Materials 10027 | -8/Materials | Evolved 2 slots: Propulsion x1, Utility x1 10150 | -8/Materials | Met 7R-MNS 10165 | -8/Materials | Discovered new exit (range 10) 10677 | -8/Materials | Garrison activated, responded to threat 10772 | -8/Materials | Build established: Tank 11396 | -8/Materials | Discovered new exit (range 5) 11514 | -8/Materials | Discovered new exit (range 4) 11846 | -8/Materials | Attacked by 7R-MNS 12122 | -8/Materials | Build established: Skirmisher 12233 | -8/Materials | 7R-MNS lamented failing the tripod run 12233 | -8/Materials | Destroyed 7R-MNS 12306 | -8/Materials | Identified exit to Garrison 12313 | -8/Materials | Garrison activated, responded to threat 12442 | -8/Materials | Identified exit to Storage 12585 | -8/Materials | Learned Factory stockpile data 12634 | -8/Materials | Learned location of 1 exit from Lower Caves 12672 | -8/Materials | Learned 4 Recycling zone layouts 12700 | -8/Materials | Learned 8 Factory zone layouts 12740 | -8/Materials | Learned Factory stockpile data 12789 | -8/Materials | Learned 2 Lower Caves zone layouts 12797 | -8/Materials | Entered Storage 12798 | -8/Storage | Identified exit to Recycling 13011 | -8/Storage | Discovered new exit (range 17) 13220 | -8/Storage | Build established: Sprinter 13498 | -8/Storage | Used back door to open Recycling access 13632 | -8/Storage | Repaired Enh. Autogun 13679 | -8/Storage | Central database locked down 13688 | -8/Storage | Met a pair of Derelict thieves 13720 | -8/Storage | Assisted by bots powering up and referring to "LRC-V3" 13801 | -8/Storage | Entered Recycling 13802 | -8/Recycling | Identified exit to Factory 13804 | -8/Recycling | Loaded intel: 5 recycling unit locations 14076 | -8/Recycling | Build established: Gunner 14183 | -8/Recycling | Scanned before Scraplab entrance 14197 | -8/Recycling | Entered Scraplab 14302 | -8/Recycling | Discovered new exit (range 2) 14303 | -8/Recycling | Entered Scraptown 14449 | -8/Scraptown | Discovered exit to Factory (range 13) 14573 | -8/Scraptown | Visited Scrapoid Research Area 14585 | -8/Scraptown | Heard Great Nut preacher, LISTEN AND RECITE! 14587 | -8/Scraptown | Visited Spacefarers 14626 | -8/Scraptown | Visited Artisan Demo Area 14741 | -8/Scraptown | Visited Fellowship of the Rings 14756 | -8/Scraptown | Visited Awakened 14962 | -8/Scraptown | Visited TADAMA 14974 | -8/Scraptown | Visited Comm Corps 15028 | -8/Scraptown | Visited UFD Registry 15028 | -8/Scraptown | Registered with UFD as "Guntank" 15061 | -8/Scraptown | Visited Abandonware Association 15068 | -8/Scraptown | Learned abandonware demo "OVRCLOCK.EXE" 15077 | -8/Scraptown | Learned abandonware demo "KABOOM.EXE" 15077 | -8/Scraptown | Learned abandonware demo "TRNCOAT.EXE" 15105 | -8/Scraptown | Visited Curators Association 15141 | -8/Scraptown | Visited Chapter 10 15155 | -8/Scraptown | Visited Botcube Research 15161 | -8/Scraptown | Found Lrg. Botcube 15164 | -8/Scraptown | Lrg. Botcube activated 15168 | -8/Scraptown | Lrg. Botcube completed mutation into flying form (unarmed). 15184 | -8/Scraptown | Visited Science Testing Area 15215 | -8/Scraptown | Discovered exit to Factory (range 3) 15322 | -8/Scraptown | Visited Infowarlord's Domain 15341 | -8/Scraptown | Found Spectral Analyzer 15359 | -8/Scraptown | Visited A0-MCA Data Center 15506 | -8/Scraptown | Visited Supply Room 15520 | -8/Scraptown | Visited Science Guys 15552 | -8/Scraptown | Visited Scrap Suit Storage 15695 | -8/Scraptown | Given a B rating by A0-MCA 15791 | -8/Scraptown | Found A0-MCA's Component Scanner 16008 | -8/Scraptown | Found Scrap Suit 18243 | -8/Scraptown | Met Optimus 18243 | -8/Scraptown | Accepted into 0bPrime 18375 | -8/Scraptown | Entered Factory 18375 | -6/Factory | Accompanied by 1 ally 18375 | -6/Factory | Evolved 4 slots: Propulsion x2, Utility x2 18376 | -6/Factory | Identified exit to Lower Caves 18377 | -6/Factory | Identified exit to Extension 18385 | -6/Factory | Attached CPS modules to Large Mutated Botcube. 18406 | -6/Factory | Murdered Large Mutated Botcube 18406 | -6/Factory | Destroyed Large Mutated Botcube 18411 | -6/Factory | Found Lrg. Botcube 18642 | -6/Factory | Discovered new exit (range 16) 18654 | -6/Factory | Fabricated Mic. Antimatter Reactor (x2) 18662 | -6/Factory | Spotted B-75 Beast 18758 | -6/Factory | Discovered exit to Extension (range 16) 18778 | -6/Factory | Entered Extension 18857 | -6/Extension | Build established: Sprinter 18928 | -6/Extension | Disrupted transfer network 19024 | -6/Extension | Rescued a captive Derelict 19098 | -6/Extension | Rescued a captive Derelict 19186 | -6/Extension | Rescued A7 19188 | -6/Extension | Attached CPS modules to A7. 19551 | -6/Extension | Spotted B-75 Beast 19578 | -6/Extension | Allies destroyed B-75 Beast 19587 | -6/Extension | Spotted B-75 Beast 19617 | -6/Extension | Allies destroyed B-75 Beast 19647 | -6/Extension | Build established: Commander-Sprinter 19647 | -6/Extension | Loaded intel: 2 recycling unit locations 19650 | -6/Extension | Learned location of Protoforge (-2) 19811 | -6/Extension | Allies destroyed A7 19817 | -6/Extension | Extracted ID and sensor layout for unrecognized location from A7's data core 19821 | -6/Extension | Found Prototype Protection 19821 | -6/Extension | Identified Med. Regenerative Plating 19851 | -6/Extension | Central database locked down 19857 | -6/Extension | Rescued a captive Derelict 19857 | -6/Extension | Rescued a captive Derelict 19874 | -6/Extension | Lost 8 allies 19973 | -6/Extension | Rescued a captive Derelict 20073 | -6/Extension | Discovered new exit (range 10) 20073 | -6/Extension | Discovered new exit (range 6) 20256 | -6/Extension | Entered Cetus 20256 | -6/Cetus | Accompanied by 13 allies 20290 | -6/Cetus | Spotted Cetus Guard 20290 | -6/Cetus | Spotted Cetus Guard 20290 | -6/Cetus | Spotted Cetus Guard 20290 | -6/Cetus | Spotted Cetus Guard 20312 | -6/Cetus | Destroyed Cetus Guard 20319 | -6/Cetus | Allies destroyed Cetus Guard 20332 | -6/Cetus | Allies destroyed Cetus Guard 20360 | -6/Cetus | Lost 4 allies 20441 | -6/Cetus | Lrg. Botcube activated 20465 | -6/Cetus | Lrg. Botcube completed mutation into treaded form, armed with 3 guns. 20508 | -6/Cetus | Attached CPS modules to Large Mutated Botcube. 20626 | -6/Cetus | Discovered new exit (range 24) 20669 | -6/Cetus | Spotted Cetus Guard 20669 | -6/Cetus | Spotted Cetus Guard 20671 | -6/Cetus | Spotted Cetus Guard 20674 | -6/Cetus | Spotted Cetus Guard 20682 | -6/Cetus | Discovered new exit (range 24) 20693 | -6/Cetus | Allies destroyed Cetus Guard 20693 | -6/Cetus | Allies destroyed Cetus Guard 20711 | -6/Cetus | Destroyed Cetus Guard 20713 | -6/Cetus | Allies destroyed Cetus Guard 20730 | -6/Cetus | Met Revision 17 20738 | -6/Cetus | Lost 6 allies 20783 | -6/Cetus | Entered Archives 20783 | -6/Archives | Accompanied by 4 allies 20869 | -6/Archives | Discovered new exit (range 24) 20891 | -6/Archives | Discovered new exit (range 16) 20901 | -6/Archives | Discovered new exit (range 19) 20968 | -6/Archives | System corruption reached 10% 21370 | -6/Archives | Entered Hub_04(d) 21370 | -6/Hub_04(d) | Accompanied by 2 allies 21394 | -6/Hub_04(d) | Allied Derelicts emerged from ambush trap array 21408 | -6/Hub_04(d) | Spotted B-75 Beast 21485 | -6/Hub_04(d) | Garrison activated, responded to threat 21493 | -6/Hub_04(d) | Discovered new exit (range 24) 21532 | -6/Hub_04(d) | Build established: Scavenger-Sprinter 21647 | -6/Hub_04(d) | Discovered new exit (range 3) 21751 | -6/Hub_04(d) | Garrison activated, responded to threat 21894 | -6/Hub_04(d) | Discovered new exit (range 20) 22070 | -6/Hub_04(d) | First assault squad dispatched 22080 | -6/Hub_04(d) | Garrison activated, responded to threat 22097 | -6/Hub_04(d) | Disrupted transfer network 22120 | -6/Hub_04(d) | Destroyed 9 combat bots 22128 | -6/Hub_04(d) | Network Hub disabled 22154 | -6/Hub_04(d) | Network Hub disabled 22165 | -6/Hub_04(d) | Spotted Lightning 22165 | -6/Hub_04(d) | Spotted Lightning 22165 | -6/Hub_04(d) | Spotted Lightning 22173 | -6/Hub_04(d) | Network Hub disabled 22174 | -6/Hub_04(d) | Spotted Lightning 22176 | -6/Hub_04(d) | Spotted Lightning 22181 | -6/Hub_04(d) | Spotted Lightning 22183 | -6/Hub_04(d) | Core integrity fell below 50% 22202 | -6/Hub_04(d) | Network Hub disabled 22219 | -6/Hub_04(d) | Lost 6 parts (1p1n2u2w) 22222 | -6/Hub_04(d) | Entered Factory 22222 | -5/Factory | Evolved 2 slots: Propulsion x2 22293 | -5/Factory | Identified exit to Upper Caves 22371 | -5/Factory | Repaired Imp. Flight Unit 22470 | -5/Factory | Unchained authorized (CL-0N3) 22521 | -5/Factory | Repaired Broken Com. Particle Reactor 22578 | -5/Factory | Loaded intel: 8 recycling unit locations 22646 | -5/Factory | Crushed by falling debris 22664 | -5/Factory | Manually triggered Chute Trap 22664 | -5/Factory | Sucked down chute 22664 | -5/Factory | Entered Waste 22666 | -5/Waste | Spotted C-40 Crusher 22666 | -5/Waste | Spotted C-40 Crusher 22669 | -5/Waste | Spotted C-40 Crusher 22671 | -5/Waste | Spotted C-40 Crusher 22673 | -5/Waste | Spotted C-40 Crusher 22674 | -5/Waste | Spotted C-40 Crusher 22677 | -5/Waste | Discovered new exit (range 22) 22679 | -5/Waste | EMP discharged 22679 | -5/Waste | Lost 4 parts (2n1u1w) 22679 | -5/Waste | System corruption reached 10% 22681 | -5/Waste | Entered Factory 22734 | -5/Factory | Repaired Biomechanical Wings 22786 | -5/Factory | Repaired Broken Biomechanical Wings 22790 | -5/Factory | Discovered new exit (range 23) 22873 | -5/Factory | Central database locked down 22902 | -5/Factory | Unchained authorized (CL-0N3) 22978 | -5/Factory | Loaded intel: 8 recycling unit locations 23036 | -5/Factory | Spotted B-75 Beast 23185 | -5/Factory | R-10 Processor reconstituted as Martyr 23238 | -5/Factory | Entered Upper Caves 23400 | -5/Upper Caves | Learned 4 Factory zone layouts 23405 | -5/Upper Caves | A Derelict revealed a hidden shortcut to "reach the base" 23407 | -5/Upper Caves | Unchained authorized (CL-0N3) 23500 | -5/Upper Caves | Build established: Sprinter 24032 | -5/Upper Caves | Attracted the attention of an 0b10 checkpoint 24059 | -5/Upper Caves | G-50 Soldier reconstituted as Armor Guard 24060 | -5/Upper Caves | Spotted Armor Guard 24095 | -5/Upper Caves | Entered Warlord 24124 | -5/Warlord | Learned Research trap positions 24124 | -5/Warlord | Learned Quarantine emergency access door positions 24125 | -5/Warlord | Learned 4 Access zone layouts 24125 | -5/Warlord | Learned 4 Command zone layouts 24125 | -5/Warlord | Learned Factory terminal intel 24125 | -5/Warlord | Learned Armory garrison access intel 24125 | -5/Warlord | Learned Research garrison access intel 24189 | -5/Warlord | Found Prototype Special Weapon 24189 | -5/Warlord | Identified RU-N14's Throwing Claymores v3 24193 | -5/Warlord | Found RU-N14's Throwing Claymores v3 24194 | -5/Warlord | Found RU-N14's Throwing Claymores v3 24197 | -5/Warlord | Found RU-N14's Throwing Claymores v3 24248 | -5/Warlord | Warlord's base attacked by MAIN.C 24288 | -5/Warlord | Found Prototype Processor 24291 | -5/Warlord | Identified Exp. Armor Integrity Analyzer 24294 | -5/Warlord | Found Prototype Hackware 24311 | -5/Warlord | Rebuked by Warlord 24323 | -5/Warlord | Found Prototype Energy Gun 24323 | -5/Warlord | Identified Vortex Shotgun 24327 | -5/Warlord | Found Prototype Energy Gun 24327 | -5/Warlord | Identified Vortex Rifle 24334 | -5/Warlord | Found Vortex Shotgun 24500 | -5/Warlord | Destroyed 10 combat bots 24598 | -5/Warlord | Warlord forces counterattacked 24659 | -5/Warlord | Spotted Striker 24713 | -5/Warlord | Spotted Striker 24719 | -5/Warlord | Destroyed 27 combat bots 24745 | -5/Warlord | Lost 15 allies 24754 | -5/Warlord | Spotted Striker 24800 | -5/Warlord | Spotted Executioner 24815 | -5/Warlord | Spotted Executioner 24822 | -5/Warlord | Lost 3 allies 24876 | -5/Warlord | Destroyed 12 combat bots 24923 | -5/Warlord | Warlord base infiltrated, sounded retreat 24940 | -5/Warlord | Build established: Commander-Sprinter 24949 | -5/Warlord | Destroyed 13 combat bots 24992 | -5/Warlord | Discovered new exit (range 15) 25121 | -5/Warlord | Entered Proximity Caves 25121 | -4/Proximity Caves | Accompanied by 5 allies 25151 | -4/Proximity Caves | Spotted B-86 Titan 25155 | -4/Proximity Caves | Destroyed B-86 Titan 25171 | -4/Proximity Caves | Learned Research trap positions 25270 | -4/Proximity Caves | Found DCF Scrap (10 items) 25371 | -4/Proximity Caves | Attracted the attention of an 0b10 outpost 25518 | -4/Proximity Caves | Discovered new exit (range 13) 25546 | -4/Proximity Caves | Attracted the attention of an 0b10 checkpoint 25835 | -4/Proximity Caves | Build established: Sprinter 26148 | -4/Proximity Caves | Entered Factory 26148 | -4/Factory | Accompanied by 1 ally 26148 | -4/Factory | Evolved 2 slots: Power x1, Utility x1 26149 | -4/Factory | Identified exit to Research 26151 | -4/Factory | Loaded intel: 26 terminal locations 26272 | -4/Factory | Spotted B-86 Titan 26272 | -4/Factory | Discovered new exit (range 6) 26283 | -4/Factory | Entered Upper Caves 26284 | -4/Upper Caves | Encountered a Warlord checkpoint 26354 | -4/Upper Caves | Learned Research terminal intel 26355 | -4/Upper Caves | Discovered new exit (range 16) 26360 | -4/Upper Caves | Learned 8 Research zone layouts 26530 | -4/Upper Caves | Build established: Scavenger-Sprinter 26615 | -4/Upper Caves | Entered another Upper Caves area 26616 | -4/Upper Caves | Encountered a Warlord checkpoint 26617 | -4/Upper Caves | Discovered exit to Research (range 7) 26806 | -4/Upper Caves | Learned location of 1 exit from Research 27064 | -4/Upper Caves | Discovered new exit (range 17) 27109 | -4/Upper Caves | Attacked by a delusional Derelict stockpiling parts 27118 | -4/Upper Caves | Entered Zhirov 27118 | -4/Zhirov | Discovered new exit (range 3) 27122 | -4/Zhirov | Met Zhirov 27125 | -4/Zhirov | Learned location of Quarantine (-2) 27125 | -4/Zhirov | Learned location of Testing (-3) 27128 | -4/Zhirov | Zhirov requested help retrieving the SGEMP Prototype 27131 | -4/Zhirov | Found Alien Artifact 27131 | -4/Zhirov | Identified Integrated Reactor 27131 | -4/Zhirov | Installed Integrated Reactor, increased core energy generation (+10) 27141 | -4/Zhirov | Found Alien Artifact 27277 | -4/Zhirov | Entered Proximity Caves 27284 | -3/Proximity Caves | P-80 Master assimilated allied VH-QII(r) 27379 | -3/Proximity Caves | Attracted the attention of an 0b10 outpost 27430 | -3/Proximity Caves | Destroyed 9 combat bots 27793 | -3/Proximity Caves | Discovered exit to Research (range 12) 27992 | -3/Proximity Caves | Entered Research 27992 | -3/Research | Accompanied by 2 allies 27992 | -3/Research | Evolved 2 slots: Propulsion x1, Utility x1 27993 | -3/Research | Identified exit to Research 27994 | -3/Research | Identified exit to Testing 27995 | -3/Research | Loaded intel: 88 trap records 27996 | -3/Research | Loaded intel: 22 terminal locations 27997 | -3/Research | Loaded intel: 4 garrison access locations 28044 | -3/Research | Central database locked down 28104 | -3/Research | Spotted B-86 Titan 28183 | -3/Research | Loaded intel: 5 recycling unit locations 28192 | -3/Research | Revision forces began assault on 0b10 28277 | -3/Research | Met up with Revision 17++ 28299 | -3/Research | Build established: Sprinter 28375 | -3/Research | Lost 3 allies 28523 | -3/Research | Identified Ghost Barrier 28634 | -3/Research | Discovered exit to Testing (range 24) 28692 | -3/Research | Research terminal network offline 28694 | -3/Research | Entered Testing 28721 | -3/Testing | Unchained authorized (CL-0N3) 28813 | -3/Testing | Repaired Cld. Nuclear Pulse Thruster 28888 | -3/Testing | G-67 Veteran reconstituted as Combat Programmer 28888 | -3/Testing | Spotted Combat Programmer 28914 | -3/Testing | Destroyed Combat Programmer 28914 | -3/Testing | Combat Programmer reconstituted as CL-0N3 29047 | -3/Testing | Spotted PG-S2ZD5NYC3I 29130 | -3/Testing | Discovered exit to Research (range 11) 29137 | -3/Testing | Found Prototype Device 29137 | -3/Testing | Identified Exp. Hardlight Generator 29145 | -3/Testing | Spotted PX-DRY9KPF07D 29178 | -3/Testing | O-32 Director reconstituted as Executioner 29178 | -3/Testing | Spotted Executioner 29185 | -3/Testing | Spotted Striker 29192 | -3/Testing | Found Prototype Energy Cannon 29194 | -3/Testing | Spotted Striker 29197 | -3/Testing | Identified Imp. Potential Cannon 29208 | -3/Testing | Found Fusion Bomb Launcher 29251 | -3/Testing | Entered Research 29251 | -2/Research | Evolved 2 slots: Weapon x2 29252 | -2/Research | Loaded intel: 87 trap records 29256 | -2/Research | Ghost Barrier fried by hacking feedback 29306 | -2/Research | Identified exit to Quarantine 29413 | -2/Research | Discovered new exit (range 12) 29431 | -2/Research | Unchained authorized (CL-0N3) 29468 | -2/Research | Entered Quarantine 29493 | -2/Quarantine | Cryocooling Duct disabled 29508 | -2/Quarantine | Ambient heat levels rising (+20) 29508 | -2/Quarantine | Non-combat units ordered to evacuate 29541 | -2/Quarantine | Found Alien Reactor 29554 | -2/Quarantine | Found Alien Artifact 29566 | -2/Quarantine | Found Alien Artifact 29604 | -2/Quarantine | Found Alien Artifact 29606 | -2/Quarantine | Found Alien Artifact 29608 | -2/Quarantine | Found Alien Artifact 29628 | -2/Quarantine | Spotted Fortress 29638 | -2/Quarantine | Discovered new exit (range 7) 29638 | -2/Quarantine | Discovered new exit (range 6) 29639 | -2/Quarantine | Entered Protoforge 29653 | -2/Protoforge | Superfortress began startup sequence 29673 | -2/Protoforge | Spotted B-90 Cyclops 29704 | -2/Protoforge | Spotted Hotshot 29704 | -2/Protoforge | Spotted Hotshot 29789 | -2/Protoforge | Spotted AP7-3 29789 | -2/Protoforge | Spotted AP7-3 29806 | -2/Protoforge | Spotted Decapitator 29807 | -2/Protoforge | Spotted Decapitator 29808 | -2/Protoforge | Spotted EXE-6 29808 | -2/Protoforge | Spotted EXE-6 29810 | -2/Protoforge | Spotted EXE-6 29810 | -2/Protoforge | Spotted EXE-6 29812 | -2/Protoforge | UFD initiated attack on Protoforge (Readiness: Adequate) 29812 | -2/Protoforge | Loaded intel: 3 recycling unit locations 29856 | -2/Protoforge | Optimus greeted in Protoforge 29860 | -2/Protoforge | Found Prototype Ballistic Gun 29860 | -2/Protoforge | Identified Cep. XC Strikerail 29884 | -2/Protoforge | Found Prototype Slashing Weapon 29884 | -2/Protoforge | Identified Exp. Terror Saw 29906 | -2/Protoforge | Lost 5 allies 29913 | -2/Protoforge | Found Cep. XC Strikerail 29922 | -2/Protoforge | Found Prototype Device 29922 | -2/Protoforge | Identified Exp. Kinecellerator 29982 | -2/Protoforge | UFD reported confirmed Drillbomb installation 29991 | -2/Protoforge | Found Prototype Energy Gun 30002 | -2/Protoforge | Identified Cep. Variable Chargecaster 30035 | -2/Protoforge | UFD reported confirmed Drillbomb installation 30052 | -2/Protoforge | Identified Dimensional Node Initializer 30052 | -2/Protoforge | Initialized slip node 30056 | -2/Protoforge | Identified Subatomic Replicator 30056 | -2/Protoforge | Used Subatomic Replicator to create Alien Artifact 30074 | -2/Protoforge | Identified Supercharged TR 30074 | -2/Protoforge | Warped through subspace to slip node 30082 | -2/Protoforge | Spotted Decapitator 30093 | -2/Protoforge | Spotted Striker 30093 | -2/Protoforge | Spotted Striker 30098 | -2/Protoforge | Found Prototype Power Core 30098 | -2/Protoforge | Identified Cep. Zero-point Core 30100 | -2/Protoforge | Found Prototype Energy Cannon 30100 | -2/Protoforge | Identified Null Cannon 30102 | -2/Protoforge | Found Prototype Storage 30102 | -2/Protoforge | Identified Cep. Chromion Battery 30104 | -2/Protoforge | Found Prototype Device 30104 | -2/Protoforge | Identified Thermal Barrier 30106 | -2/Protoforge | Found Prototype Device 30106 | -2/Protoforge | Identified Cep. Matter Streamer 30107 | -2/Protoforge | Found Prototype Device 30107 | -2/Protoforge | Identified Exp. EM Disruption Field 30110 | -2/Protoforge | Found Prototype Device 30110 | -2/Protoforge | Identified Exp. Force Field 30115 | -2/Protoforge | Found Prototype Device 30115 | -2/Protoforge | Identified Cep. Antimissile System 30117 | -2/Protoforge | Found Prototype Storage 30117 | -2/Protoforge | Identified Cep. NT7 Matterbank 30126 | -2/Protoforge | Lost 12 allies 30154 | -2/Protoforge | Spotted Hotshot 30156 | -2/Protoforge | Build established: Scavenger-Sprinter 30193 | -2/Protoforge | Spotted Striker 30230 | -2/Protoforge | Destroyed Hotshot 30237 | -2/Protoforge | Spotted Immortal 30244 | -2/Protoforge | Spotted Immortal 30293 | -2/Protoforge | Found Prototype Piercing Weapon 30293 | -2/Protoforge | Identified Exp. Jetlance 30304 | -2/Protoforge | Spotted Executioner 30332 | -2/Protoforge | Spotted Striker 30364 | -2/Protoforge | Spotted Striker 30365 | -2/Protoforge | Spotted Executioner 30389 | -2/Protoforge | Spotted Executioner 30391 | -2/Protoforge | Spotted Executioner 30391 | -2/Protoforge | Spotted Immortal 30392 | -2/Protoforge | Spotted Immortal 30405 | -2/Protoforge | Spotted Hotshot 30405 | -2/Protoforge | Spotted Hotshot 30421 | -2/Protoforge | Destroyed Hotshot 30431 | -2/Protoforge | Destroyed Hotshot 30433 | -2/Protoforge | Spotted Immortal 30439 | -2/Protoforge | Spotted Hotshot 30491 | -2/Protoforge | Found Exp. Jetlance 30529 | -2/Protoforge | Forge Plexus network access discovered 30559 | -2/Protoforge | Spotted Striker 30559 | -2/Protoforge | Spotted Striker 30559 | -2/Protoforge | Spotted Executioner 30559 | -2/Protoforge | Spotted Executioner 30560 | -2/Protoforge | Spotted Overlord 30560 | -2/Protoforge | Spotted Hotshot 30560 | -2/Protoforge | Found 0bPrime Scrap Suit 30561 | -2/Protoforge | Spotted Hotshot 30614 | -2/Protoforge | Destroyed Executioner 30620 | -2/Protoforge | Spotted Executioner 30638 | -2/Protoforge | Found 0bPrime Scrap Suit 30647 | -2/Protoforge | Lost 9 allies 30778 | -2/Protoforge | Spotted Decapitator 30778 | -2/Protoforge | Spotted Decapitator 30778 | -2/Protoforge | Spotted Decapitator 30778 | -2/Protoforge | Spotted Decapitator 30779 | -2/Protoforge | Destroyed Decapitator 30783 | -2/Protoforge | Spotted Hotshot 30784 | -2/Protoforge | Destroyed Decapitator 30789 | -2/Protoforge | Destroyed Decapitator 30792 | -2/Protoforge | Destroyed Decapitator 30807 | -2/Protoforge | Destroyed Hotshot 30834 | -2/Protoforge | Destroyed 10 combat bots 30837 | -2/Protoforge | Destroyed Hotshot 30865 | -2/Protoforge | Lost 7 parts (1p2n4w) 30876 | -2/Protoforge | Found Cep. Variable Chargecaster 30970 | -2/Protoforge | Found 0bPrime Scrap Suit 30987 | -2/Protoforge | Found 0bPrime Scrap Suit 31027 | -2/Protoforge | Destroyed Immortal 31035 | -2/Protoforge | Found Crosscalibrator 31061 | -2/Protoforge | Found Faulty Cep. Zero-point Core 31063 | -2/Protoforge | Found Faulty Cep. Zero-point Core 31064 | -2/Protoforge | Found Faulty Cep. Zero-point Core 31117 | -2/Protoforge | Spotted V891-i 31117 | -2/Protoforge | Spotted V658-n 31117 | -2/Protoforge | Spotted V913-d 31117 | -2/Protoforge | Spotted V771-e 31148 | -2/Protoforge | Spotted Decapitator 31149 | -2/Protoforge | Spotted Decapitator 31149 | -2/Protoforge | Spotted Decapitator 31149 | -2/Protoforge | Spotted V049-s 31159 | -2/Protoforge | Found Exp. Jetlance 31163 | -2/Protoforge | Found Cep. Miniperforator 31189 | -2/Protoforge | Spotted Decapitator 31189 | -2/Protoforge | Spotted Decapitator 31189 | -2/Protoforge | Spotted Decapitator 31189 | -2/Protoforge | Spotted Decapitator 31249 | -2/Protoforge | System corruption reached 10% 31259 | -2/Protoforge | Spotted AP7-3 31259 | -2/Protoforge | Spotted AP7-3 31656 | -2/Protoforge | Spotted Striker 31660 | -2/Protoforge | Spotted Striker 31729 | -2/Protoforge | Spotted Executioner 31752 | -2/Protoforge | Destroyed Executioner 31754 | -2/Protoforge | Spotted Executioner 31775 | -2/Protoforge | P-80 Master assimilated allied 02FBA-D 31814 | -2/Protoforge | Spotted Striker 31814 | -2/Protoforge | Spotted Executioner 31814 | -2/Protoforge | Spotted Striker 31814 | -2/Protoforge | Spotted Executioner 31822 | -2/Protoforge | Spotted Striker 31823 | -2/Protoforge | Lost 7 allies 31920 | -2/Protoforge | Destroyed AP7-3 31924 | -2/Protoforge | Found Prototype Device 31924 | -2/Protoforge | Identified Exp. ECM Suite 31940 | -2/Protoforge | Found Cep. Dimensional Manipulator 31943 | -2/Protoforge | Found Faulty Cep. Thermoelectric Network 31945 | -2/Protoforge | Found Cep. Blasthammer 31946 | -2/Protoforge | Found Faulty Cep. Thermoelectric Network 31974 | -2/Protoforge | Spotted Executioner 31996 | -2/Protoforge | UFD reported confirmed Drillbomb installation 32085 | -2/Protoforge | Build established: Scavenger-Scrapper 32252 | -2/Protoforge | Found Cep. Antigrav Storage Unit 32277 | -2/Protoforge | Found Cep. Weapon Articulator 32278 | -2/Protoforge | Found Cep. Weapon Articulator 32279 | -2/Protoforge | Found Cep. Weapon Articulator 32322 | -2/Protoforge | Spotted Striker 32336 | -2/Protoforge | Spotted Striker 32347 | -2/Protoforge | Spotted Executioner 32348 | -2/Protoforge | Spotted Striker 32389 | -2/Protoforge | Spotted Striker 32404 | -2/Protoforge | Spotted Executioner 32404 | -2/Protoforge | Spotted Executioner 32412 | -2/Protoforge | Spotted Executioner 32440 | -2/Protoforge | Spotted Striker 32441 | -2/Protoforge | Spotted Striker 32448 | -2/Protoforge | Lost 6 allies 32506 | -2/Protoforge | Found Faulty Cep. Zero-point Core 32572 | -2/Protoforge | Found Cep. Fieldthrust Drive 32672 | -2/Protoforge | Destroyed Decapitator 32673 | -2/Protoforge | Destroyed Decapitator 32692 | -2/Protoforge | Found Cep. Plasma Driver 32791 | -2/Protoforge | Spotted Striker 32820 | -2/Protoforge | P-80 Master assimilated allied Lugger 265 32834 | -2/Protoforge | P-80 Master assimilated allied 02FDX-D 32861 | -2/Protoforge | Spotted Executioner 32861 | -2/Protoforge | Spotted Executioner 32881 | -2/Protoforge | Found 0bPrime Scrap Suit 32897 | -2/Protoforge | Lost 15 allies 32969 | -2/Protoforge | Spotted Executioner 32970 | -2/Protoforge | Spotted Executioner 32971 | -2/Protoforge | Spotted Striker 32972 | -2/Protoforge | Destroyed Striker 32981 | -2/Protoforge | Spotted Executioner 32981 | -2/Protoforge | Spotted Executioner 33022 | -2/Protoforge | Lost 8 allies 33032 | -2/Protoforge | Spotted Striker 33038 | -2/Protoforge | Spotted Striker 33042 | -2/Protoforge | Spotted Striker 33050 | -2/Protoforge | Destroyed Striker 33074 | -2/Protoforge | Spotted Executioner 33078 | -2/Protoforge | Spotted Executioner 33138 | -2/Protoforge | Lost 8 allies 33155 | -2/Protoforge | Spotted Hotshot 33155 | -2/Protoforge | Spotted Hotshot 33156 | -2/Protoforge | Discovered new exit (range 4) 33157 | -2/Protoforge | Entered Access 33157 | -1/Access | Evolved 2 slots: Weapon x2 33158 | -1/Access | Identified exit to Command 33174 | -1/Access | Found Fusion Bomb Launcher 33176 | -1/Access | Found Fusion Bomb Launcher 33214 | -1/Access | Spotted Striker 33215 | -1/Access | Spotted Striker 33222 | -1/Access | Destroyed Striker 33224 | -1/Access | Destroyed Striker 33245 | -1/Access | Destroyed 7 combat bots 33263 | -1/Access | Spotted Executioner 33271 | -1/Access | Destroyed Executioner 33271 | -1/Access | Spotted Executioner 33274 | -1/Access | Destroyed Executioner 33337 | -1/Access | Entered Command 33404 | -1/Command | Spotted B-99 Colossus 33452 | -1/Command | Spotted Executioner 33454 | -1/Command | Destroyed Executioner 33459 | -1/Command | Spotted B-99 Colossus 33459 | -1/Command | Spotted Executioner 33459 | -1/Command | Spotted Executioner 33459 | -1/Command | Spotted Striker 33489 | -1/Command | Destroyed Striker 33542 | -1/Command | Lost 4 parts (4w) 33587 | -1/Command | First assault squad dispatched 33595 | -1/Command | Spotted M Guard 33596 | -1/Command | Spotted M Guard 33596 | -1/Command | Spotted Combat Programmer 33616 | -1/Command | Spotted Combat Programmer 33631 | -1/Command | Destroyed Combat Programmer 33635 | -1/Command | Destroyed Combat Programmer 33657 | -1/Command | Spotted Alpha 7 33657 | -1/Command | Spotted Striker 33657 | -1/Command | Spotted B-99 Colossus 33657 | -1/Command | Spotted Alpha 7 33657 | -1/Command | Spotted Executioner 33660 | -1/Command | Discovered new exit (range 15) 33671 | -1/Command | Core integrity fell below 50% 33675 | *** | Escaped! Last Messages --------------- 33672_ Slug penetrates Wall. 33672_ A bubble of rippling energy engulfs the area. 33672_ Field strength at 94. 33672_ Field strength at 33. 33672_ Field strength at 88. 33673_ Field strength at 23. 33673_ Field strength at 82. 33673_ Knocked back. 33673_ Graphene Brace destroyed. 33673_ Knocked back. 33673_ Penetrated by Slug. 33673_ Slug penetrates Wall. 33674_ Acquired 5 matter. 33674_ Field strength at 13. 33674_ Penetrated by Slug. 33674_ Cep. Blasthammer destroyed. 33674_ Penetrated by Slug. 33674_ Slug penetrates Wall. 33674_ Penetrated by Slug. 33675_ Field strength at 3. Map ----- +----------------------------------------------------+ | !# # [ +????????????????????????????? | | # # #????????????????????????????? | | # # "" #????????????????????????????? | | "# # """#????????????????????????????? | | # T"#????????????????????????????? | | # """#????????????????????????????? | | + "" "" #????????????????????????????? | | " """ ! #????????????????????????????? | | " """ #????????????????????????????? | | ## " "" #????????????????????????????? | | # " #????????????????????????????? | | # " #????????????????????????????? | | "####### "####????????????????????????????? | | # "#?????### #??????????????????????????????? | | ## "#???????? #??????????????????????????????? | | ## ##???????? #??????????????????????????????? | | ## #?????????##??????????????????????????????? | | #" #?????????????????????????????????????????? | | ## #?????????????????????????????????????????? | | ?# ##?????????##############?????????????????? | | ?# "########### #?????????????????? | | ?# % ### % ] ;;BB #?????????????????? | | ?# # ]; ;BB ^ ^ ^ #?????????????????? | | ?# 7 % E K^ #?????????????????? | | p ^ % #?????????????????? | | 7 ^ "@ #?????????????????? | | E E ^ "" #?????????????????? | | ^^ ^ BB ^ ^ #?????????????????? | | ##### # BB % #?????????????????? | | ??? ##### # # # # #?????????????????? | | ?? ????######### #?????????????????? | | ?" ????????????# #?????????????????? | | ?"" ????????????##############?????????????????? | | ?"" ???????????????????????????????????????????? | | ?? ???????????????????????????????????????????? | | ?? ???????????????????????????????????????????? | | ??? ???????????????????????????????????????????? | | ????#????????????????????????????????????????????? | | ?????????????????????????????????????????????????? | | ?????????????????????????????????????????????????? | | ?????????????????????????????????????????????????? | | ?????????????????????????????????????????????????? | | ?????????????????????????????????????????????????? | | ?????????????????????????????????????????????????? | | ?????????????????????????????????????????????????? | | ?????????????????????????????????????????????????? | | ?????????????????????????????????????????????????? | | ?????????????????????????????????????????????????? | | ?????????????????????????????????????????????????? | | ?????????????????????????????????????????????????? | +----------------------------------------------------+ Best States ------------- Heat Dissipation 88 Coolant Potential 120 Energy Generation 71 Energy Capacity 650 Matter Stores 500 Matter Capacity 500 Sight Range 24 Terrain Scan Range 16 Terrain Scan Density 10 Jamming Range 16 Power Amplification 30 Additional Mass Support 30 Armor Coverage 225 Resistance: TH 50 Propulsion Shielding 66 Point Defense Rating 480 Evasion (%) 80 Targeting Accuracy 8 Launcher Accuracy 20 Recoil Reduction 3 Offensive Hacking 14 Defensive Hacking 20 Item Schematics ----------------- Launcher Guidance Computer | -8/Materials | Scanalyzed Bore Cannon | -8/Materials | Scanalyzed Rocket Launcher | -8/Materials | Scanalyzed Imp. VTOL Module | -8/Materials | Scanalyzed Flight Unit | -8/Storage | Hacked Lgt. Assault Rifle | -8/Storage | Hacked Targeting Computer | -8/Storage | Hacked Great Axe | -8/Recycling | Hacked Lgt. Fission Core | -6/Factory | Scanalyzed Lgt. Ion Engine | -6/Extension | Hacked Weapon Mount | -6/Hub_04(d) | Hacked Adv. Targeting Computer | -6/Hub_04(d) | Hacked Railgun | -6/Hub_04(d) | Hacked Adv. Power Amplifier | -5/Factory | Hacked Smartbomb Launcher | -5/Factory | Scanalyzed Assault Drone Bay | -4/Zhirov | Free Exp. Heat Sink | -4/Zhirov | Free Exp. Optical Array | -4/Zhirov | Free Imp. Arc Thrower | -4/Zhirov | Free Ragnarok Missile Launcher | -3/Research | Hacked Hvy. Proton Missile Launcher | -2/Protoforge | Archive Cld. Linear Gravjet | -2/Protoforge | Archive Centrium Heavy Armor Plating | -2/Protoforge | Archive Adv. Quantum Shading Machine | -2/Protoforge | Archive Helical Railgun | -2/Protoforge | Archive Exp. Thermal Generator | -2/Protoforge | Archive Imp. Matter Compressor | -2/Protoforge | Archive Prc. Energy Filter | -2/Protoforge | Archive Lrn. Phase Cannon | -2/Protoforge | Archive Robot Schematics ------------------ T-07 Excavator | -2/Protoforge | Archive R-10 Processor | -2/Protoforge | Archive S-43 Plague | -2/Protoforge | Archive Fabricated ------------ Mic. Antimatter Reactor | x2 | -6/Factory | Preloaded Repaired ---------- Imp. Treads | 21% | -9/Materials Enh. Autogun | 33% | -8/Storage Imp. Flight Unit | 22% | -5/Factory Com. Particle Reactor | 88% | -5/Factory | Broken Biomechanical Wings | 5% | -5/Factory Biomechanical Wings | 60% | -5/Factory | Broken Cld. Nuclear Pulse Thruster | 38% | -3/Testing Studied --------- Hvy. Assault Rifle | -9/Materials | Hacked Rocket Launcher | -9/Materials | Hacked Lgt. Nuclear Core | -8/Materials | Hacked Autogun | -8/Materials | Hacked Lgt. Ion Engine | -8/Materials | Hacked Lgt. Fission Core | -6/Factory | Hacked VTOL Module | -5/Factory | Hacked Lrn. Proton Cannon | -3/Research | Hacked Impulse Thruster Array | -3/Research | Hacked Hyp. Gauss Cannon | -3/Research | Hacked Mic. Antimatter Reactor | -3/Testing | Hacked Com. HERF Cannon | -3/Testing | Hacked Micro-nuke Launcher | -2/Quarantine | Hacked Alien Tech Used ----------------- Integrated Reactor Dimensional Node Initializer Subatomic Replicator Supercharged TR Achievements -------------- Better Safe Than Exploded Dominance Asserted Frankenstein Inventory(Loot) Overclocked Power Plant Worth The Wait Challenges ------------ None Game ------ Seed FluxEncryptedNanoactuators Manual? 0 Play Time 09:59:58 Cumulative 1470.6 hours Start 2025.12.19 @ 02:29:14 End 2025.12.20 @ 23:02:24 Sessions 10 Manual Loads 0 Difficulty Rogue Special Mode None Game No. 660 Rogue 660 Adventurer 0 Explorer 0 Win Type 0 Total 29 Types 14/5/3/0/1/1/2/2/0/1 Lore% 93 Gallery% 90 Achievement% 74 Wizard Run 0 Options --------- Layout 0 ASCII 0 Keyboard 0 Movement Numpad Keybinds 0 Fullscreen 2 Font 24/Smallcaps Map View 76x50 Zoom Use 0% Tactical HUD 1 Map Filters NONE Filters SHIFT_HUE(315) Steam 1 RUN: 20fa1c14-4ccb-495f-84f7-29fa571e04bf